Workbook

Sheet гр. 11 эл
B2: Курс______1__________Группа___11 эл__________Месяц_сентябрь______2014____г.
B4: наименование предметов | C4: фамилия преподавателя | D4: Количество часов | AI4: Дано часов за месяц | AJ4: Годовой план | AK4: Всего дано часов | AL4: Осталось до конца учебного года | AM4: Кол-во часов за 1/2 сем.
D5: Числа месяца
D6: 1 | E6: 2 | F6: 3 | G6: 4 | H6: 5 | I6: 6 | J6: 7 | K6: 8 | L6: 9 | M6: 10 | N6: 11 | O6: 12 | P6: 13 | Q6: 14 | R6: 15 | S6: 16 | T6: 17 | U6: 18 | V6: 19 | W6: 20 | X6: 21 | Y6: 22 | Z6: 23 | AA6: 24 | AB6: 25 | AC6: 26 | AD6: 27 | AE6: 28 | AF6: 29 | AG6: 30
B7: Русский язык | C7: Лисичкина А.В. | AI7: =SUM(D7:AH7) -> 0 | AJ7: 74 | AK7: =SUM(D7:AH7) -> 0 | AL7: =MIN(AJ7-AK7) -> 74 | AM7: 74/-
B8: Русский яз. консульт. | C8: Лисичкина А.В. | AI8: =SUM(D8:AH8) -> 0 | AJ8: 10 | AK8: =SUM(D8:AH8) -> 0 | AL8: =MIN(AJ8-AK8) -> 10 | AM8: 10/-
B9: Литература | C9: Лисичкина А.В. | AI9: =SUM(D9:AH9) -> 0 | AJ9: 110 | AK9: =SUM(AI9) -> 0 | AL9: =MIN(AJ9-AK9) -> 110 | AM9: –⁄110
B10: Английский язык | C10: Лебедев А.В. | E10: 2 | T10: 2 | V10: 2 | Y10: 2 | Z10: 2 | AA10: 2 | AI10: 12 | AJ10: 78 | AK10: 12 | AL10: =MIN(AJ10-AK10) -> 66 | AM10: 32/46
B11: Немецкий язык | C11: Франко Л.М. | L11: 2 | AI11: 10 | AK11: 10
B12: История | C12: Становой Е.Ю. | AI12: =SUM(D12:AH12) -> 0 | AJ12: 110 | AK12: =SUM(AI12+AN12) -> 0 | AL12: =MIN(AJ12-AK12) -> 110 | AM12: 42/68
B13: Обществознание | C13: Трофименко Е.В. | AI13: 0 | AJ13: 110 | AK13: =SUM(D13:AH13) -> 0 | AL13: 110 | AM13: –⁄110
B14: Химия | C14: Трудова Н.А. | E14: 2 | K14: 2 | N14: 2 | R14: 2 | S14: 2 | V14: 2 | AB14: 2 | AI14: 14 | AJ14: 74 | AK14: =SUM(D14:AH14) -> 14 | AL14: 60 | AM14: 32/42
B15: Биология | C15: Сахнюк О.Г. | F15: 2 | G15: 2 | H15: 2 | L15: 2 | M15: 2 | N15: 2 | O15: 2 | S15: 2 | T15: 2 | U15: 2 | V15: 2 | Z15: 2 | AA15: 2 | AC15: 2 | AG15: 2 | AI15: 30 | AJ15: 74 | AK15: =SUM(D15:AH15) -> 30 | AL15: 44 | AM15: 32/42
B16: Физическая культура | C16: Некрасов В.А. | G16: 2 | N16: 2 | U16: 4 | AB16: 4 | AI16: 12 | AJ16: 117 | AK16: =SUM(AI16+AN16) -> 12 | AL16: 105 | AM16: 48/69
B17: ОБЖ | C17: Лисичкина А.В. | AI17: 0 | AJ17: 68 | AK17: =SUM(D17:AH17) -> 0 | AL17: 68 | AM17: 32/36
B18: Математика | C18: Сергеева Т.А. | E18: 2 | F18: 2 | G18: 2 | K18: 2 | L18: 2 | M18: 2 | S18: 2 | T18: 2 | U18: 2 | Y18: 2 | Z18: 2 | AA18: 2 | AB18: 2 | AC18: 4 | AF18: 2 | AG18: 2 | AI18: 34 | AJ18: 276 | AK18: 34 | AL18: 242 | AM18: 76/200
B19: Математика консульт. | C19: Сергеева Т.А. | AI19: 0 | AJ19: 10 | AK19: 0 | AL19: 10 | AM19: 10
B20: Информатика и ИКТ | AI20: 0 | AJ20: 88 | AK20: 0 | AL20: 88 | AM20: 88/-
B21: Информатика и ИКТ консультации | AI21: 0 | AJ21: 10 | AK21: 0 | AL21: 10 | AM21: 10
B22: Физика | C22: Трудова Н.А. | E22: 2 | F22: 2 | G22: 2 | H22: 2 | M22: 2 | O22: 2 | R22: 2 | T22: 2 | Y22: 2 | AA22: 2 | AF22: 2 | AI22: 22 | AJ22: 162 | AK22: 22 | AL22: 140 | AM22: 96/66
B23: Физика консультац. | C23: Трудова Н.А. | AI23: 0 | AJ23: 10 | AK23: 0 | AL23: 10 | AM23: 10
B24: ИТОГО | D24: =SUM(D7:D22) -> 0 | E24: =SUM(E7:E22) -> 8 | F24: 6 | G24: 8 | H24: 4 | I24: 0 | J24: 0 | K24: 4 | L24: 6 | M24: 6 | N24: 6 | O24: 4 | P24: 0 | Q24: 0 | R24: 4 | S24: 6 | T24: 8 | U24: 8 | V24: 6 | W24: 0 | X24: 0 | Y24: 6 | Z24: 6 | AA24: 8 | AB24: 8 | AC24: 6 | AD24: 0 | AE24: 0 | AF24: 4 | AG24: 4 | AH24: 0 | AI24: =SUM(AI7:AI22) -> 134
B26: Курс______1__________Группа___11 эл__________Месяц_октябрь______2014____г.
B28: наименование предметов | C28: фамилия преподавателя | D28: Количество часов | AI28: Дано часов за месяц | AJ28: Годовой план | AK28: Всего дано часов | AL28: Осталось до конца учебного года | AM28: Кол-во часов за 1/2 сем.
D29: Числа месяца
D30: 1 | E30: 2 | F30: 3 | G30: 4 | H30: 5 | I30: 6 | J30: 7 | K30: 8 | L30: 9 | M30: 10 | N30: 11 | O30: 12 | P30: 13 | Q30: 14 | R30: 15 | S30: 16 | T30: 17 | U30: 18 | V30: 19 | W30: 20 | X30: 21 | Y30: 22 | Z30: 23 | AA30: 24 | AB30: 25 | AC30: 26 | AD30: 27 | AE30: 28 | AF30: 29 | AG30: 30 | AH30: 31
B31: Русский язык | C31: Лисичкина А.В. | J31: 2 | K31: 2 | L31: 2 | M31: 2 | P31: 2 | Q31: 2 | T31: 2 | W31: 2 | X31: 2 | Y31: 2 | Z31: 2 | AA31: 2 | AF31: 2 | AG31: 2 | AI31: =SUM(D31:AH31) -> 28 | AJ31: 74 | AK31: =SUM(AK7+AI31) -> 28 | AL31: =MIN(AJ31-AK31) -> 46 | AM31: 74/-
B32: Русский яз. консульт. | C32: Лисичкина А.В. | AI32: =SUM(D32:AH32) -> 0 | AJ32: 10 | AK32: 0 | AL32: =MIN(AJ32-AK32) -> 10 | AM32: 10/-
B33: Литература | C33: Лисичкина А.В. | AI33: =SUM(D33:AH33) -> 0 | AJ33: 110 | AK33: 0 | AL33: =MIN(AJ33-AK33) -> 110 | AM33: –⁄110
B34: Английский язык | C34: Лебедев А.В. | Z34: 2 | AE34: 2 | AI34: 4 | AJ34: 78 | AK34: =SUM(AK10+AI34) -> 16 | AL34: =MIN(AJ34-AK34) -> 62 | AM34: 32/46
B35: Немецкий язык | C35: Франко Л.М. | X35: 2 | AI35: 6 | AK35: 16
B36: История | C36: Становой Е.Ю. | E36: 2 | I36: 2 | J36: 2 | R36: 2 | AD36: 2 | AI36: =SUM(D36:AH36) -> 10 | AJ36: 110 | AK36: 10 | AL36: =MIN(AJ36-AK36) -> 100 | AM36: 42/68
B37: Обществознание | C37: Трофименко Е.В. | AI37: 0 | AJ37: 110 | AK37: =SUM(AK13+AI37) -> 0 | AL37: 110 | AM37: –⁄110
B38: Химия | C38: Трудова Н.А. | D38: 2 | I38: 2 | M38: 2 | Y38: 2 | AI38: 8 | AJ38: 74 | AK38: 22 | AL38: 52 | AM38: 32/42
B39: Биология | C39: Сахнюк О.Г. | E39: 2 | AI39: 2 | AJ39: 74 | AK39: 32 | AL39: 42 | AM39: 32/42
B40: Физическая культура | C40: Некрасов В.А. | L40: 2 | P40: 2 | S40: 2 | W40: 2 | AD40: 2 | AI40: 10 | AJ40: 117 | AK40: 22 | AL40: 95 | AM40: 48/69
B41: ОБЖ | C41: Лисичкина А.В. | J41: 2 | P41: 2 | AA41: 2 | AI41: 6 | AJ41: 68 | AK41: 6 | AL41: 62 | AM41: 32/36
B42: Математика | C42: Сергеева Т.А. | E42: 2 | F42: 2 | K42: 2 | L42: 2 | M42: 2 | Q42: 2 | R42: 2 | S42: 2 | T42: 2 | X42: 2 | AA42: 2 | AD42: 2 | AE42: 2 | AF42: 4 | AG42: 2 | AH42: 2 | AI42: 34 | AJ42: 276 | AK42: 68 | AL42: 208 | AM42: 76/200
B43: Математика консульт. | C43: Сергеева Т.А. | AI43: 0 | AJ43: 10 | AK43: 0 | AL43: 10 | AM43: 10
B44: Информатика и ИКТ | C44: Ганя Д.С. | D44: 2 | E44: 2 | F44: 2 | I44: 2 | J44: 2 | K44: 2 | L44: 2 | M44: 2 | P44: 2 | Q44: 2 | R44: 2 | S44: 2 | T44: 2 | W44: 2 | X44: 2 | Y44: 2 | Z44: 2 | AA44: 2 | AD44: 2 | AE44: 2 | AF44: 2 | AG44: 2 | AH44: 2 | AI44: 46 | AJ44: 88 | AK44: 46 | AL44: 42 | AM44: 88/-
B45: Информатика и ИКТ консультации | C45: Ганя Д.С. | AI45: 0 | AJ45: 10 | AK45: 0 | AL45: 10 | AM45: 10
B46: Физика | C46: Трудова Н.А. | D46: 2 | F46: 2 | I46: 2 | K46: 2 | R46: 2 | S46: 2 | T46: 2 | Y46: 2 | Z46: 2 | AI46: 18 | AJ46: 162 | AK46: 40 | AL46: 122 | AM46: 96/66
B47: Физика консультац. | C47: Трудова Н.А. | AI47: 0 | AJ47: 10 | AK47: 0 | AL47: 10 | AM47: 10
B48: ИТОГО | D48: =SUM(D31:D46) -> 6 | E48: =SUM(E31:E46) -> 8 | F48: 6 | G48: 0 | H48: 0 | I48: 8 | J48: 8 | K48: 8 | L48: 8 | M48: 8 | N48: 0 | O48: 0 | P48: 8 | Q48: 6 | R48: 8 | S48: 8 | T48: 8 | U48: 0 | V48: 0 | W48: 6 | X48: 8 | Y48: 8 | Z48: 8 | AA48: 8 | AB48: 0 | AC48: 0 | AD48: 8 | AE48: 6 | AF48: 8 | AG48: 6 | AH48: 4 | AI48: =SUM(AI31:AI46) -> 172
B50: Курс______1__________Группа___11 эл__________Месяц_ноябрь______2014____г.
B52: наименование предметов | C52: фамилия преподавателя | D52: Количество часов | AI52: Дано часов за месяц | AJ52: Годовой план | AK52: Всего дано часов | AL52: Осталось до конца учебного года | AM52: Кол-во часов за 1/2 сем.
D53: Числа месяца
D54: 1 | E54: 2 | F54: 3 | G54: 4 | H54: 5 | I54: 6 | J54: 7 | K54: 8 | L54: 9 | M54: 10 | N54: 11 | O54: 12 | P54: 13 | Q54: 14 | R54: 15 | S54: 16 | T54: 17 | U54: 18 | V54: 19 | W54: 20 | X54: 21 | Y54: 22 | Z54: 23 | AA54: 24 | AB54: 25 | AC54: 26 | AD54: 27 | AE54: 28 | AF54: 29 | AG54: 30
B55: Русский язык | C55: Лисичкина А.В. | H55: 2 | J55: 2 | M55: 2 | N55: 2 | O55: 2 | P55: 2 | Q55: 2 | T55: 2 | U55: 2 | W55: 2 | X55: 2 | AA55: 2 | AB55: 2 | AE55: 2 | AI55: =SUM(D55:AH55) -> 28 | AJ55: 74 | AK55: =SUM(AK31+AI55) -> 56 | AL55: =MIN(AJ55-AK55) -> 18 | AM55: 74/-
B56: Русский яз. консульт. | C56: Лисичкина А.В. | AA56: 2 | AI56: =SUM(D56:AH56) -> 2 | AJ56: 10 | AK56: 2 | AL56: =MIN(AJ56-AK56) -> 8 | AM56: 10/-
B57: Литература | C57: Лисичкина А.В. | AI57: =SUM(D57:AH57) -> 0 | AJ57: 110 | AK57: 0 | AL57: =MIN(AJ57-AK57) -> 110 | AM57: –⁄110
B58: Английский язык | C58: Лебедев А.В. | N58: 2 | U58: 2 | W58: 2 | AB58: 2 | AC58: 2 | AI58: 10 | AJ58: 78 | AK58: 26 | AL58: =MIN(AJ58-AK58) -> 52 | AM58: 32/46
B59: Немецкий язык | C59: Франко Л.М. | H59: 2 | AI59: 12 | AK59: 28
B60: История | C60: Становой Е.Ю. | U60: 2 | V60: 2 | X60: 2 | AA60: 2 | AB60: 2 | AE60: 2 | AI60: =SUM(D60:AH60) -> 12 | AJ60: 110 | AK60: 22 | AL60: =MIN(AJ60-AK60) -> 88 | AM60: 42/68
B61: Обществознание | C61: Трофименко Е.В. | AI61: 0 | AJ61: 110 | AK61: =SUM(AK37+AI61) -> 0 | AL61: 110 | AM61: –⁄110
B62: Химия | C62: Трудова Н.А. | W62: 4 | AC62: 4 | AI62: 8 | AJ62: 74 | AK62: 30 | AL62: 44 | AM62: 32/42
B63: Биология | C63: Сахнюк О.Г. | AI63: 0 | AJ63: 74 | AK63: 32 | AL63: 42 | AM63: 32/42
B64: Физическая культура | C64: Некрасов В.А. | I64: 4 | M64: 2 | P64: 2 | T64: 2 | AD64: 4 | AI64: 14 | AJ64: 117 | AK64: 36 | AL64: 81 | AM64: 48/69
B65: ОБЖ | C65: Лисичкина А.В. | J65: 2 | O65: 2 | Q65: 2 | X65: 2 | AI65: 8 | AJ65: 68 | AK65: 14 | AL65: 54 | AM65: 32/36
B66: Математика | C66: Сергеева Т.А. | H66: 2 | N66: 2 | O66: 2 | T66: 2 | AI66: 8 | AJ66: 276 | AK66: 76 | AL66: 200 | AM66: 76/200
B67: Математика консульт. | C67: Сергеева Т.А. | AI67: 0 | AJ67: 10 | AK67: 0 | AL67: 10 | AM67: 10
B68: Информатика и ИКТ | C68: Ганя Д.С. | H68: 2 | I68: 2 | J68: 2 | M68: 2 | N68: 2 | O68: 2 | P68: 2 | Q68: 2 | T68: 2 | U68: 2 | V68: 2 | X68: 2 | AB68: 2 | AD68: 2 | AE68: 2 | AI68: 30 | AJ68: 88 | AK68: 76 | AL68: 12 | AM68: 88/-
B69: Информатика и ИКТ консультации | C69: Ганя Д.С. | AI69: 0 | AJ69: 10 | AK69: 0 | AL69: 10 | AM69: 10
B70: Физика | C70: Трудова Н.А. | V70: 2 | AA70: 2 | AC70: 2 | AD70: 2 | AI70: 8 | AJ70: 162 | AK70: 48 | AL70: 114 | AM70: 96/66
B71: Физика консультац. | C71: Трудова Н.А. | AI71: 0 | AJ71: 10 | AK71: 0 | AL71: 10 | AM71: 10
B72: ИТОГО | D72: =SUM(D55:D70) -> 0 | E72: =SUM(E55:E70) -> 0 | F72: 0 | G72: 0 | H72: 8 | I72: 6 | J72: 6 | K72: 0 | L72: 0 | M72: 6 | N72: 8 | O72: 8 | P72: 6 | Q72: 6 | R72: 0 | S72: 0 | T72: 8 | U72: 8 | V72: 6 | W72: 8 | X72: 8 | Y72: 0 | Z72: 0 | AA72: 8 | AB72: 8 | AC72: 8 | AD72: 8 | AE72: 6 | AF72: 0 | AG72: 0 | AH72: 0 | AI72: =SUM(AI55:AI70) -> 140
B74: Курс______1__________Группа___11 эл__________Месяц_декабрь______2014____г.
B76: наименование предметов | C76: фамилия преподавателя | D76: Количество часов | AI76: Дано часов за месяц | AJ76: Годовой план | AK76: Всего дано часов | AL76: Осталось до конца учебного года | AM76: Кол-во часов за 1/2 сем.
D77: Числа месяца
D78: 1 | E78: 2 | F78: 3 | G78: 4 | H78: 5 | I78: 6 | J78: 7 | K78: 8 | L78: 9 | M78: 10 | N78: 11 | O78: 12 | P78: 13 | Q78: 14 | R78: 15 | S78: 16 | T78: 17 | U78: 18 | V78: 19 | W78: 20 | X78: 21 | Y78: 22 | Z78: 23 | AA78: 24 | AB78: 25 | AC78: 26 | AD78: 27 | AE78: 28 | AF78: 29 | AG78: 30 | AH78: 31
B79: Русский язык | C79: Лисичкина А.В. | D79: 2 | E79: 2 | F79: 2 | L79: 2 | M79: 2 | N79: 2 | O79: 2 | R79: 2 | V79: 2 | Y79: эк | AI79: =SUM(D79:AH79) -> 18 | AJ79: 74 | AK79: =SUM(AK55+AI79) -> 74 | AL79: =MIN(AJ79-AK79) -> 0 | AM79: 74/-
B80: Русский яз. консульт. | C80: Лисичкина А.В. | H80: 2 | K80: 2 | L80: 2 | Y80: 2 | AI80: =SUM(D80:AH80) -> 8 | AJ80: 10 | AK80: 10 | AL80: =MIN(AJ80-AK80) -> 0 | AM80: 10/-
B81: Литература | C81: Лисичкина А.В. | AI81: =SUM(D81:AH81) -> 0 | AJ81: 110 | AK81: 0 | AL81: =MIN(AJ81-AK81) -> 110 | AM81: –⁄110
B82: Английский язык | C82: Лебедев А.В. | E82: 2 | G82: 2 | M82: 2 | S82: 2 | T82: 2 | AI82: =SUM(D82:AH83) -> 10 | AJ82: 78 | AK82: 36 | AL82: =MIN(AJ82-AK82) -> 42 | AM82: 32/46
B83: Немецкий язык | C83: Франко Л.М. | AK83: =SUM(AK59+AI82) -> 38
B84: История | C84: Становой Е.Ю. | E84: 2 | H84: 2 | K84: 2 | O84: 2 | S84: 4 | AA84: 4 | AI84: =SUM(D84:AH84) -> 16 | AJ84: 110 | AK84: 38 | AL84: =MIN(AJ84-AK84) -> 72 | AM84: 42/68
B85: Обществознание | C85: Трофименко Е.В. | AI85: 0 | AJ85: 110 | AK85: =SUM(AK61+AI85) -> 0 | AL85: 110 | AM85: –⁄110
B86: Химия | C86: Трудова Н.А. | T86: 2 | AI86: 2 | AJ86: 74 | AK86: 32 | AL86: 42 | AM86: 32/42
B87: Биология | C87: Сахнюк О.Г. | AI87: 0 | AJ87: 74 | AK87: 32 | AL87: 42 | AM87: 32/42
B88: Физическая культура | C88: Некрасов В.А. | G88: 2 | K88: 2 | AB88: 2 | AI88: 6 | AJ88: 117 | AK88: 42 | AL88: 75 | AM88: 48/69
B89: ОБЖ | C89: Лисичкина А.В. | D89: 2 | F89: 2 | S89: 2 | V89: 2 | Z89: 4 | AA89: 2 | AB89: 4 | AC89: 2 | AI89: 20 | AJ89: 68 | AK89: 34 | AL89: 34 | AM89: 32/36
B90: Математика | C90: Сергеева Т.А. | H90: 2 | L90: 2 | V90: 2 | Z90: 2 | AB90: 2 | AC90: 2 | AI90: 12 | AJ90: 276 | AK90: 88 | AL90: 188 | AM90: 76/200
B91: Математика консульт. | C91: Сергеева Т.А. | AI91: 0 | AJ91: 10 | AK91: 0 | AL91: 10 | AM91: 10
B92: Информатика и ИКТ | C92: Ганя Д.С. | D92: 2 | E92: 2 | F92: 2 | H92: 2 | L92: 2 | R92: 2 | U92: эк | AI92: 12 | AJ92: 88 | AK92: 88 | AL92: 0 | AM92: 88/-
B93: Информатика и ИКТ консультации | C93: Ганя Д.С. | AI93: 0 | AJ93: 10 | AK93: 0 | AL93: 10 | AM93: 10
B94: Физика | C94: Трудова Н.А. | D94: 2 | F94: 2 | G94: 4 | K94: 2 | M94: 4 | N94: 6 | O94: 2 | R94: 2 | T94: 4 | V94: 2 | Z94: 2 | AA94: 2 | AI94: 34 | AJ94: 162 | AK94: 82 | AL94: 80 | AM94: 96/66
B95: Физика консультац. | C95: Трудова Н.А. | AI95: 0 | AJ95: 10 | AK95: 0 | AL95: 10 | AM95: 10
B96: ИТОГО | D96: =SUM(D79:D94) -> 8 | E96: =SUM(E79:E94) -> 8 | F96: 8 | G96: 8 | H96: 8 | I96: 0 | J96: 0 | K96: 8 | L96: 8 | M96: 8 | N96: 8 | O96: 6 | P96: 0 | Q96: 0 | R96: 6 | S96: 8 | T96: 8 | U96: 0 | V96: 8 | W96: 0 | X96: 0 | Y96: 2 | Z96: 8 | AA96: 8 | AB96: 8 | AC96: 4 | AD96: 0 | AE96: 0 | AF96: 0 | AG96: 0 | AH96: 0 | AI96: =SUM(AI79:AI94) -> 138
B98: Курс______1__________Группа___11 эл__________Месяц_январь______2015____г.
B100: наименование предметов | C100: фамилия преподавателя | D100: Количество часов | AI100: Дано часов за месяц | AJ100: Годовой план | AK100: Всего дано часов | AL100: Осталось до конца учебного года | AM100: Кол-во часов за 1/2 сем.
D101: Числа месяца
D102: 1 | E102: 2 | F102: 3 | G102: 4 | H102: 5 | I102: 6 | J102: 7 | K102: 8 | L102: 9 | M102: 10 | N102: 11 | O102: 12 | P102: 13 | Q102: 14 | R102: 15 | S102: 16 | T102: 17 | U102: 18 | V102: 19 | W102: 20 | X102: 21 | Y102: 22 | Z102: 23 | AA102: 24 | AB102: 25 | AC102: 26 | AD102: 27 | AE102: 28 | AF102: 29 | AG102: 30 | AH102: 31
B103: Русский язык | C103: Лисичкина А.В. | AI103: =SUM(D103:AH103) -> 0 | AJ103: 74 | AK103: =SUM(AK79+AI103) -> 74 | AL103: =MIN(AJ103-AK103) -> 0 | AM103: 74/-
B104: Русский яз. консульт. | C104: Лисичкина А.В. | AI104: =SUM(D104:AH104) -> 0 | AJ104: 10 | AK104: =SUM(AK80+AI104) -> 10 | AL104: =MIN(AJ104-AK104) -> 0 | AM104: 10/-
B105: Литература | C105: Лисичкина А.В. | R105: 2 | S105: 2 | W105: 2 | X105: 2 | Z105: 2 | AD105: 2 | AE105: 2 | AI105: =SUM(D105:AH105) -> 14 | AJ105: 110 | AK105: =SUM(AK81+AI105) -> 14 | AL105: =MIN(AJ105-AK105) -> 96 | AM105: –⁄110
B106: Английский язык | C106: Лебедев А.В. | Y106: 2 | AD106: 2 | AE106: 2 | AI106: =SUM(D106:AH107) -> 6 | AJ106: 78 | AK106: =SUM(AK82+AI106) -> 42 | AL106: =MIN(AJ106-AK106) -> 36 | AM106: 32/46
B107: Немецкий язык | C107: Франко Л.М. | AK107: =SUM(AK83+AI106) -> 44 | AL107: =MIN(AJ106-AK107) -> 34
B108: История | C108: Становой Е.Ю. | P108: 2 | AC108: 2 | AD108: 2 | AG108: 2 | AI108: =SUM(D108:AH108) -> 8 | AJ108: 110 | AK108: =SUM(AK84+AI108) -> 46 | AL108: =MIN(AJ108-AK108) -> 64 | AM108: 42/68
B109: Обществознание | C109: Трофименко Е.В. | O109: 2 | P109: 2 | Q109: 2 | V109: 2 | W109: 2 | Y109: 2 | AE109: 2 | AF109: 2 | AI109: 16 | AJ109: 110 | AK109: =SUM(AK85+AI109) -> 16 | AL109: 94 | AM109: –⁄110
B110: Химия | C110: Трудова Н.А. | O110: 2 | S110: 2 | AE110: 2 | AG110: 2 | AI110: 8 | AJ110: 74 | AK110: 40 | AL110: 34 | AM110: 32/42
B111: Биология | C111: Сахнюк О.Г. | W111: 2 | X111: 2 | Y111: 2 | Z111: 2 | AD111: 2 | AI111: 10 | AJ111: 74 | AK111: 42 | AL111: 32 | AM111: 32/42
B112: Физическая культура | C112: Некрасов В.А. | O112: 2 | Y112: 2 | AC112: 2 | AF112: 2 | AI112: 8 | AJ112: 117 | AK112: 50 | AL112: 67 | AM112: 48/69
B113: ОБЖ | C113: Лисичкина А.В. | Q113: 2 | R113: 2 | S113: 2 | X113: 2 | AI113: 8 | AJ113: 68 | AK113: 42 | AL113: 26 | AM113: 32/36
B114: Математика | C114: Сергеева Т.А. | P114: 2 | R114: 2 | S114: 2 | V114: 4 | W114: 2 | AI114: 12 | AJ114: 276 | AK114: 100 | AL114: 176 | AM114: 76/200
B115: Математика консульт. | C115: Сергеева Т.А. | AI115: 0 | AJ115: 10 | AK115: 0 | AL115: 10 | AM115: 10
B116: Информатика и ИКТ | C116: Ганя Д.С. | AI116: 0 | AJ116: 88 | AK116: 88 | AL116: 0 | AM116: 88/-
B117: Информатика и ИКТ консультации | C117: Ганя Д.С. | AI117: 0 | AJ117: 10 | AK117: 0 | AL117: 10 | AM117: 10
B118: Физика | C118: Трудова Н.А. | Q118: 2 | R118: 2 | X118: 2 | AC118: 2 | AF118: 2 | AG118: 2 | AI118: 12 | AJ118: 162 | AK118: 94 | AL118: 68 | AM118: 96/66
B119: Физика консультац. | C119: Трудова Н.А. | AI119: 0 | AJ119: 10 | AK119: 0 | AL119: 10 | AM119: 10
B120: ИТОГО | D120: =SUM(D103:D118) -> 0 | E120: =SUM(E103:E118) -> 0 | F120: 0 | G120: 0 | H120: 0 | I120: 0 | J120: 0 | K120: 0 | L120: 0 | M120: 0 | N120: 0 | O120: 6 | P120: 6 | Q120: 6 | R120: 8 | S120: 8 | T120: 0 | U120: 0 | V120: 6 | W120: 8 | X120: 8 | Y120: 8 | Z120: 4 | AA120: 0 | AB120: 0 | AC120: 6 | AD120: 8 | AE120: 8 | AF120: 6 | AG120: 6 | AH120: 0 | AI120: =SUM(AI103:AI118) -> 102
AP121: 0
B122: Курс______1__________Группа___11 эл__________Месяц_февраль______2015____г.
B124: наименование предметов | C124: фамилия преподавателя | D124: Количество часов | AI124: Дано часов за месяц | AJ124: Годовой план | AK124: Всего дано часов | AL124: Осталось до конца учебного года | AM124: Кол-во часов за 1/2 сем.
D125: Числа месяца
D126: 1 | E126: 2 | F126: 3 | G126: 4 | H126: 5 | I126: 6 | J126: 7 | K126: 8 | L126: 9 | M126: 10 | N126: 11 | O126: 12 | P126: 13 | Q126: 14 | R126: 15 | S126: 16 | T126: 17 | U126: 18 | V126: 19 | W126: 20 | X126: 21 | Y126: 22 | Z126: 23 | AA126: 24 | AB126: 25 | AC126: 26 | AD126: 27 | AE126: 28 | AF126: 29 | AG126: 30 | AH126: 31
B127: Русский язык | C127: Лисичкина А.В. | AI127: =SUM(D127:AH127) -> 0 | AJ127: 74 | AK127: =SUM(AK103+AI127) -> 74 | AL127: =MIN(AJ127-AK127) -> 0 | AM127: 74/-
B128: Русский яз. консульт. | C128: Лисичкина А.В. | AI128: =SUM(D128:AH128) -> 0 | AJ128: 10 | AK128: =SUM(AK104+AI128) -> 10 | AL128: =MIN(AJ128-AK128) -> 0 | AM128: 10/-
B129: Литература | C129: Лисичкина А.В. | F129: 2 | G129: 2 | H129: 2 | I129: 2 | O129: 2 | P129: 2 | T129: 2 | U129: 2 | V129: 2 | AA129: 2 | AB129: 2 | AD129: 2 | AI129: =SUM(D129:AH129) -> 24 | AJ129: 110 | AK129: =SUM(AK105+AI129) -> 38 | AL129: =MIN(AJ129-AK129) -> 72 | AM129: –⁄110
B130: Английский язык | C130: Лебедев А.В. | E130: 2 | G130: 2 | O130: 2 | AA130: 2 | AI130: =SUM(D130:AH131) -> 8 | AJ130: 78 | AK130: =SUM(AK106+AI130) -> 50 | AL130: =MIN(AJ130-AK130) -> 28 | AM130: 32/46
B131: Немецкий язык | C131: Франко Л.М. | AI131: 6
B132: История | C132: Становой Е.Ю. | E132: 2 | H132: 2 | L132: 2 | N132: 2 | P132: 2 | W132: 2 | AI132: =SUM(D132:AH132) -> 12 | AJ132: 110 | AK132: =SUM(AK108+AI132) -> 58 | AL132: =MIN(AJ132-AK132) -> 52 | AM132: 42/68
B133: Обществознание | C133: Трофименко Е.В. | F133: 2 | G133: 2 | L133: 2 | N133: 2 | T133: 2 | U133: 2 | V133: 2 | AA133: 2 | AC133: 2 | AI133: 18 | AJ133: 110 | AK133: =SUM(AK109+AI133) -> 34 | AL133: 76 | AM133: –⁄110
B134: Химия | C134: Трудова Н.А. | I134: 2 | L134: 2 | M134: 2 | U134: 2 | AC134: 2 | AI134: 10 | AJ134: 74 | AK134: 50 | AL134: 24 | AM134: 32/42
B135: Биология | C135: Сахнюк О.Г. | H135: 2 | W135: 4 | AC135: 2 | AD135: 2 | AI135: 10 | AJ135: 74 | AK135: 52 | AL135: 22 | AM135: 32/42
B136: Физическая культура | C136: Некрасов В.А. | E136: 2 | O136: 2 | S136: 2 | V136: 4 | AI136: 10 | AJ136: 117 | AK136: 60 | AL136: 57 | AM136: 48/69
B137: ОБЖ | C137: Лисичкина А.В. | I137: 2 | N137: 2 | AB137: 2 | AI137: 6 | AJ137: 68 | AK137: 48 | AL137: 20 | AM137: 32/36
B138: Математика | C138: Сергеева Т.А. | H138: 2 | I138: 2 | L138: 2 | M138: 4 | O138: 2 | S138: 2 | T138: 2 | AA138: 2 | AB138: 2 | AC138: 2 | AD138: 4 | AI138: 26 | AJ138: 276 | AK138: 126 | AL138: 150 | AM138: 76/200
B139: Математика консульт. | C139: Сергеева Т.А. | AI139: 0 | AJ139: 10 | AK139: 0 | AL139: 10 | AM139: 10
B140: Информатика и ИКТ | C140: Ганя Д.С. | AI140: 0 | AJ140: 88 | AK140: 88 | AL140: 0 | AM140: 88/-
B141: Информатика и ИКТ консультации | C141: Ганя Д.С. | AI141: 0 | AJ141: 10 | AK141: 0 | AL141: 10 | AM141: 10
B142: Физика | C142: Трудова Н.А. | E142: 2 | G142: 2 | M142: 2 | N142: 2 | P142: 2 | S142: 2 | U142: 2 | AB142: 2 | AI142: 16 | AJ142: 162 | AK142: 110 | AL142: 52 | AM142: 96/66
B143: Физика консультац. | C143: Трудова Н.А. | AI143: 0 | AJ143: 10 | AK143: 0 | AL143: 10 | AM143: 10
B144: ИТОГО | D144: =SUM(D127:D142) -> 0 | E144: =SUM(E127:E142) -> 8 | F144: 4 | G144: 8 | H144: 8 | I144: 8 | J144: 0 | K144: 0 | L144: 8 | M144: 8 | N144: 8 | O144: 8 | P144: 6 | Q144: 0 | R144: 0 | S144: 6 | T144: 6 | U144: 8 | V144: 8 | W144: 6 | X144: 0 | Y144: 0 | Z144: 0 | AA144: 8 | AB144: 8 | AC144: 8 | AD144: 8 | AE144: 0 | AF144: 0 | AG144: 0 | AH144: 0 | AI144: =SUM(AI127:AI142) -> 146
B146: Курс______1__________Группа___11 эл__________Месяц_март______2015____г.
B148: наименование предметов | C148: фамилия преподавателя | D148: Количество часов | AI148: Дано часов за месяц | AJ148: Годовой план | AK148: Всего дано часов | AL148: Осталось до конца учебного года | AM148: Кол-во часов за 1/2 сем.
D149: Числа месяца
D150: 1 | E150: 2 | F150: 3 | G150: 4 | H150: 5 | I150: 6 | J150: 7 | K150: 8 | L150: 9 | M150: 10 | N150: 11 | O150: 12 | P150: 13 | Q150: 14 | R150: 15 | S150: 16 | T150: 17 | U150: 18 | V150: 19 | W150: 20 | X150: 21 | Y150: 22 | Z150: 23 | AA150: 24 | AB150: 25 | AC150: 26 | AD150: 27 | AE150: 28 | AF150: 29 | AG150: 30 | AH150: 31
B151: Русский язык | C151: Лисичкина А.В. | AI151: =SUM(D151:AH151) -> 0 | AJ151: 74 | AK151: =SUM(AK127+AI151) -> 74 | AL151: =MIN(AJ151-AK151) -> 0 | AM151: 74/-
B152: Русский яз. консульт. | C152: Лисичкина А.В. | AI152: =SUM(D152:AH152) -> 0 | AJ152: 10 | AK152: =SUM(AK128+AI152) -> 10 | AL152: =MIN(AJ152-AK152) -> 0 | AM152: 10/-
B153: Литература | C153: Лисичкина А.В. | E153: 2 | F153: 2 | G153: 2 | M153: 2 | P153: 2 | S153: 2 | T153: 2 | V153: 2 | AB153: 2 | AC153: 2 | AH153: 2 | AI153: =SUM(D153:AH153) -> 22 | AJ153: 110 | AK153: =SUM(AK129+AI153) -> 60 | AL153: =MIN(AJ153-AK153) -> 50 | AM153: –⁄110
B154: Английский язык | C154: Лебедев А.В. | N154: 2 | T154: 2 | V154: 2 | AB154: 2 | AH154: 2 | AI154: =SUM(D154:AH155) -> 10 | AJ154: 78 | AK154: =SUM(AK130+AI154) -> 60 | AL154: =MIN(AJ154-AK154) -> 18 | AM154: 32/46
B155: Немецкий язык | C155: Франко Л.М.
B156: История | C156: Становой Е.Ю. | N156: 2 | O156: 2 | T156: 2 | W156: 2 | Z156: 2 | AB156: 2 | AD156: 2 | AI156: =SUM(D156:AH156) -> 14 | AJ156: 110 | AK156: =SUM(AK132+AI156) -> 72 | AL156: =MIN(AJ156-AK156) -> 38 | AM156: 42/68
B157: Обществознание | C157: Трофименко Е.В. | F157: 2 | G157: 2 | H157: 2 | M157: 2 | O157: 2 | U157: 2 | Z157: 2 | AA157: 2 | AC157: 2 | AG157: 2 | AH157: 2 | AI157: 22 | AJ157: 110 | AK157: =SUM(AK133+AI157) -> 56 | AL157: 54 | AM157: –⁄110
B158: Химия | C158: Трудова Н.А. | G158: 2 | P158: 2 | U158: 2 | AI158: 6 | AJ158: 74 | AK158: 56 | AL158: 18 | AM158: 32/42
B159: Биология | C159: Сахнюк О.Г. | I159: 4 | AD159: 2 | AI159: 6 | AJ159: 74 | AK159: 58 | AL159: 16 | AM159: 32/42
B160: Физическая культура | C160: Некрасов В.А. | H160: 2 | S160: 2 | V160: 4 | W160: 4 | AB160: 2 | AC160: 2 | AG160: 2 | AI160: 18 | AJ160: 117 | AK160: 78 | AL160: 39 | AM160: 48/69
B161: ОБЖ | C161: Лисичкина А.В. | E161: 2 | H161: 2 | M161: 2 | P161: 2 | U161: 2 | AG161: 2 | AH161: 2 | AI161: 14 | AJ161: 68 | AK161: 62 | AL161: 6 | AM161: 32/36
B162: Математика | C162: Сергеева Т.А. | E162: 2 | F162: 2 | H162: 2 | I162: 2 | M162: 2 | N162: 2 | O162: 4 | S162: 4 | T162: 2 | Z162: 4 | AA162: 4 | AC162: 2 | AD162: 2 | AI162: 34 | AJ162: 276 | AK162: 160 | AL162: 116 | AM162: 76/200
B163: Математика консульт. | C163: Сергеева Т.А. | AI163: 0 | AJ163: 10 | AK163: 0 | AL163: 10 | AM163: 10
B164: Информатика и ИКТ | C164: Ганя Д.С. | AI164: 0 | AJ164: 88 | AK164: 88 | AL164: 0 | AM164: 88/-
B165: Информатика и ИКТ консультации | C165: Ганя Д.С. | AI165: 0 | AJ165: 10 | AK165: 0 | AL165: 10 | AM165: 10
B166: Физика | C166: Трудова Н.А. | E166: 2 | G166: 2 | N166: 2 | P166: 2 | U166: 2 | AI166: 10 | AJ166: 162 | AK166: 120 | AL166: 42 | AM166: 96/66
B167: Физика консультац. | C167: Трудова Н.А. | AI167: 0 | AJ167: 10 | AK167: 0 | AL167: 10 | AM167: 10
B168: ИТОГО | D168: =SUM(D151:D166) -> 0 | E168: =SUM(E151:E166) -> 8 | F168: 6 | G168: 8 | H168: 8 | I168: 6 | J168: 0 | K168: 0 | L168: 0 | M168: 8 | N168: 8 | O168: 8 | P168: 8 | Q168: 0 | R168: 0 | S168: 8 | T168: 8 | U168: 8 | V168: 8 | W168: 6 | X168: 0 | Y168: 0 | Z168: 8 | AA168: 6 | AB168: 8 | AC168: 8 | AD168: 6 | AE168: 0 | AF168: 0 | AG168: 6 | AH168: 8 | AI168: =SUM(AI151:AI166) -> 156
B170: Курс______1__________Группа___11 эл__________Месяц_апрель______2015____г.
B172: наименование предметов | C172: фамилия преподавателя | D172: Количество часов | AI172: Дано часов за месяц | AJ172: Годовой план | AK172: Всего дано часов | AL172: Осталось до конца учебного года | AM172: Кол-во часов за 1/2 сем.
D173: Числа месяца
D174: 1 | E174: 2 | F174: 3 | G174: 4 | H174: 5 | I174: 6 | J174: 7 | K174: 8 | L174: 9 | M174: 10 | N174: 11 | O174: 12 | P174: 13 | Q174: 14 | R174: 15 | S174: 16 | T174: 17 | U174: 18 | V174: 19 | W174: 20 | X174: 21 | Y174: 22 | Z174: 23 | AA174: 24 | AB174: 25 | AC174: 26 | AD174: 27 | AE174: 28 | AF174: 29 | AG174: 30
B175: Русский язык | C175: Лисичкина А.В. | AI175: =SUM(D175:AH175) -> 0 | AJ175: 74 | AK175: =SUM(AK151+AI175) -> 74 | AL175: =MIN(AJ175-AK175) -> 0 | AM175: 74/-
B176: Русский яз. консульт. | C176: Лисичкина А.В. | AI176: =SUM(D176:AH176) -> 0 | AJ176: 10 | AK176: =SUM(AK152+AI176) -> 10 | AL176: =MIN(AJ176-AK176) -> 0 | AM176: 10/-
B177: Литература | C177: Лисичкина А.В. | J177: 2 | K177: 2 | M177: 2 | P177: 2 | W177: 2 | X177: 2 | Z177: 2 | AA177: 2 | AD177: 2 | AF177: 2 | AG177: 2 | AI177: =SUM(D177:AH177) -> 22 | AJ177: 110 | AK177: =SUM(AK153+AI177) -> 82 | AL177: =MIN(AJ177-AK177) -> 28 | AM177: –⁄110
B178: Английский язык | C178: Лебедев А.В. | E178: 2 | K178: 2 | L178: 2 | X178: 2 | Y178: 2 | AE178: 2 | AF178: 2 | AI178: =SUM(D178:AH179) -> 14 | AJ178: 78 | AK178: =SUM(AK154+AI178) -> 74 | AL178: =MIN(AJ178-AK178) -> 4 | AM178: 32/46
B179: Немецкий язык | C179: Франко Л.М.
B180: История | C180: Становой Е.Ю. | D180: 2 | F180: 2 | W180: 2 | Z180: 2 | AG180: 2 | AI180: =SUM(D180:AH180) -> 10 | AJ180: 110 | AK180: =SUM(AK156+AI180) -> 82 | AL180: =MIN(AJ180-AK180) -> 28 | AM180: 42/68
B181: Обществознание | C181: Трофименко Е.В. | F181: 2 | I181: 2 | J181: 2 | L181: 2 | M181: 2 | P181: 2 | Q181: 2 | R181: 2 | AI181: 16 | AJ181: 110 | AK181: =SUM(AK157+AI181) -> 72 | AL181: 38 | AM181: –⁄110
B182: Химия | C182: Трудова Н.А. | F182: 2 | P182: 2 | Y182: 2 | AD182: 2 | AF182: 2 | AI182: 10 | AJ182: 74 | AK182: 66 | AL182: 8 | AM182: 32/42
B183: Биология | C183: Сахнюк О.Г. | W183: 2 | AA183: 4 | AI183: 6 | AJ183: 74 | AK183: 64 | AL183: 10 | AM183: 32/42
B184: Физическая культура | C184: Некрасов В.А. | E184: 2 | L184: 2 | P184: 2 | Q184: 4 | S184: 4 | W184: 2 | X184: 2 | AE184: 2 | AG184: 4 | AI184: 24 | AJ184: 117 | AK184: 102 | AL184: 15 | AM184: 48/69
B185: ОБЖ | C185: Лисичкина А.В. | M185: 2 | AI185: 2 | AJ185: 68 | AK185: 64 | AL185: 4 | AM185: 32/36
B186: Математика | C186: Сергеева Т.А. | D186: 2 | E186: 4 | F186: 2 | I186: 2 | J186: 2 | L186: 2 | Q186: 2 | R186: 2 | S186: 4 | T186: 4 | X186: 2 | Z186: 2 | AD186: 2 | AE186: 2 | AI186: 34 | AJ186: 276 | AK186: 194 | AL186: 82 | AM186: 76/200
B187: Математика консульт. | C187: Сергеева Т.А. | AI187: 0 | AJ187: 10 | AK187: 0 | AL187: 10 | AM187: 10
B188: Информатика и ИКТ | C188: Ганя Д.С. | AI188: 0 | AJ188: 88 | AK188: 88 | AL188: 0 | AM188: 88/-
B189: Информатика и ИКТ консультации | C189: Ганя Д.С. | AI189: 0 | AJ189: 10 | AK189: 0 | AL189: 10 | AM189: 10
B190: Физика | C190: Трудова Н.А. | D190: 2 | I190: 2 | K190: 2 | M190: 2 | R190: 2 | T190: 2 | Y190: 2 | Z190: 2 | AD190: 2 | AF190: 2 | AI190: 20 | AJ190: 162 | AK190: 140 | AL190: 22 | AM190: 96/66
B191: Физика консультац. | C191: Трудова Н.А. | F191: 2 | J191: 2 | Q191: 2 | S191: 2 | AA191: 2 | AI191: 10 | AJ191: 10 | AK191: 10 | AL191: 0 | AM191: 10
B192: ИТОГО | D192: =SUM(D175:D190) -> 6 | E192: =SUM(E175:E190) -> 8 | F192: 8 | G192: 0 | H192: 0 | I192: 6 | J192: 6 | K192: 6 | L192: 8 | M192: 8 | N192: 0 | O192: 0 | P192: 8 | Q192: 8 | R192: 6 | S192: 8 | T192: 6 | U192: 0 | V192: 0 | W192: 8 | X192: 8 | Y192: 6 | Z192: 8 | AA192: 6 | AB192: 0 | AC192: 0 | AD192: 8 | AE192: 6 | AF192: 8 | AG192: 8 | AH192: 0 | AI192: =SUM(AI175:AI190) -> 158
B194: Курс______1__________Группа___11 эл__________Месяц_май______2015____г.
B196: наименование предметов | C196: фамилия преподавателя | D196: Количество часов | AI196: Дано часов за месяц | AJ196: Годовой план | AK196: Всего дано часов | AL196: Осталось до конца учебного года | AM196: Кол-во часов за 1/2 сем.
D197: Числа месяца
D198: 1 | E198: 2 | F198: 3 | G198: 4 | H198: 5 | I198: 6 | J198: 7 | K198: 8 | L198: 9 | M198: 10 | N198: 11 | O198: 12 | P198: 13 | Q198: 14 | R198: 15 | S198: 16 | T198: 17 | U198: 18 | V198: 19 | W198: 20 | X198: 21 | Y198: 22 | Z198: 23 | AA198: 24 | AB198: 25 | AC198: 26 | AD198: 27 | AE198: 28 | AF198: 29 | AG198: 30 | AH198: 31
B199: Русский язык | C199: Лисичкина А.В. | AI199: =SUM(D199:AH199) -> 0 | AJ199: 74 | AK199: =SUM(AK175+AI199) -> 74 | AL199: =MIN(AJ199-AK199) -> 0 | AM199: 74/-
B200: Русский яз. консульт. | C200: Лисичкина А.В. | AI200: =SUM(D200:AH200) -> 0 | AJ200: 10 | AK200: =SUM(AK176+AI200) -> 10 | AL200: =MIN(AJ200-AK200) -> 0 | AM200: 10/-
B201: Литература | C201: Лисичкина А.В. | I201: 2 | K201: 2 | O201: 2 | U201: 2 | V201: 2 | X201: 2 | AC201: 2 | AD201: 2 | AI201: =SUM(D201:AH201) -> 16 | AJ201: 110 | AK201: =SUM(AK177+AI201) -> 98 | AL201: =MIN(AJ201-AK201) -> 12 | AM201: –⁄110
B202: Английский язык | C202: Лебедев А.В. | H202: 2 | O202: 2 | AI202: =SUM(D202:AH203) -> 4 | AJ202: 78 | AK202: =SUM(AK178+AI202) -> 78 | AL202: =MIN(AJ202-AK202) -> 0 | AM202: 32/46
B203: Немецкий язык | C203: Франко Л.М.
B204: История | C204: Становой Е.Ю. | H204: 2 | J204: 4 | K204: 4 | P204: 2 | R204: 4 | U204: 4 | V204: 2 | X204: 2 | Y204: 2 | AB204: 2 | AI204: =SUM(D204:AH204) -> 28 | AJ204: 110 | AK204: =SUM(AK180+AI204) -> 110 | AL204: =MIN(AJ204-AK204) -> 0 | AM204: 42/68
B205: Обществознание | C205: Трофименко Е.В. | I205: 2 | U205: 2 | V205: 2 | W205: 2 | Y205: 2 | AD205: 2 | AE205: 2 | AF205: 2 | AI205: 16 | AJ205: 110 | AK205: =SUM(AK181+AI205) -> 88 | AL205: 22 | AM205: –⁄110
B206: Химия | C206: Трудова Н.А. | X206: 2 | AI206: 2 | AJ206: 74 | AK206: 68 | AL206: 6 | AM206: 32/42
B207: Биология | C207: Сахнюк О.Г. | I207: 2 | O207: 2 | V207: 2 | W207: 2 | AD207: 2 | AI207: 10 | AJ207: 74 | AK207: 74 | AL207: 0 | AM207: 32/42
B208: Физическая культура | C208: Некрасов В.А. | Q208: 6 | AB208: 2 | AI208: 8 | AJ208: 117 | AK208: 110 | AL208: 7 | AM208: 48/69
B209: ОБЖ | C209: Лисичкина А.В. | O209: 2 | W209: 2 | AI209: 4 | AJ209: 68 | AK209: 68 | AL209: 0 | AM209: 32/36
B210: Математика | C210: Сергеева Т.А. | H210: 2 | P210: 2 | X210: 2 | Y210: 4 | AB210: 2 | AC210: 4 | AD210: 2 | AE210: 6 | AF210: 4 | AI210: 28 | AJ210: 276 | AK210: 222 | AL210: 54 | AM210: 76/200
B211: Математика консульт. | C211: Сергеева Т.А. | AI211: 0 | AJ211: 10 | AK211: 0 | AL211: 10 | AM211: 10
B212: Информатика и ИКТ | C212: Ганя Д.С. | AI212: 0 | AJ212: 88 | AK212: 88 | AL212: 0 | AM212: 88/-
B213: Информатика и ИКТ консультации | C213: Ганя Д.С. | AI213: 0 | AJ213: 10 | AK213: 0 | AL213: 10 | AM213: 10
B214: Физика | C214: Трудова Н.А. | I214: 2 | J214: 2 | P214: 2 | R214: 2 | AF214: 2 | AI214: 10 | AJ214: 162 | AK214: 150 | AL214: 12 | AM214: 96/66
B215: Физика консультац. | C215: Трудова Н.А. | AI215: 0 | AJ215: 10 | AK215: 10 | AL215: 0 | AM215: 10
B216: ИТОГО | D216: =SUM(D199:D214) -> 0 | E216: =SUM(E199:E214) -> 0 | F216: 0 | G216: 0 | H216: 6 | I216: 8 | J216: 6 | K216: 6 | L216: 0 | M216: 0 | N216: 0 | O216: 8 | P216: 6 | Q216: 6 | R216: 6 | S216: 0 | T216: 0 | U216: 8 | V216: 8 | W216: 6 | X216: 8 | Y216: 8 | Z216: 0 | AA216: 0 | AB216: 6 | AC216: 6 | AD216: 8 | AE216: 8 | AF216: 8 | AG216: 0 | AH216: 0 | AI216: =SUM(AI199:AI214) -> 126
B218: Курс______1__________Группа___11 эл__________Месяц_июнь______2015____г.
... 21 more rows

Sheet гр. 11 к
B2: Курс___1____Группа___11 к____Месяц ____сентябрь______2014____г.
B4: наименование предметов | C4: фамилия преподавателя | D4: Количество часов | AI4: Дано часов за месяц | AJ4: Годовой план | AK4: Всего дано часов | AL4: Осталось до конца учебного года | AM4: Кол-во часов за 1/2 сем.
D5: Числа месяца
D6: 1 | E6: 2 | F6: 3 | G6: 4 | H6: 5 | I6: 6 | J6: 7 | K6: 8 | L6: 9 | M6: 10 | N6: 11 | O6: 12 | P6: 13 | Q6: 14 | R6: 15 | S6: 16 | T6: 17 | U6: 18 | V6: 19 | W6: 20 | X6: 21 | Y6: 22 | Z6: 23 | AA6: 24 | AB6: 25 | AC6: 26 | AD6: 27 | AE6: 28 | AF6: 29 | AG6: 30
A7: 5 | B7: Русский язык | C7: Лисичкина А.В. | AI7: =SUM(D7:AH7) -> 0 | AJ7: 74 | AK7: =SUM(D7:AH7) -> 0 | AL7: =MIN(AJ7-AK7) -> 74 | AM7: 74/-
B8: Русский яз.консульт. | C8: Лисичкина А.В. | AI8: =SUM(D8:AH8) -> 0 | AJ8: 10 | AK8: =SUM(D8:AH8) -> 0 | AL8: =MIN(AJ8-AK8) -> 10 | AM8: 10/-
B9: Литература | C9: Лисичкина А.В. | AI9: =SUM(D9:AH9) -> 0 | AJ9: 110 | AK9: =SUM(D9:AH9) -> 0 | AL9: =MIN(AJ9-AK9) -> 110 | AM9: –⁄110
A10: 2 | B10: Английский язык | C10: Лебедев А.В. | E10: 2 | F10: 2 | Y10: 2 | Z10: 2 | AA10: 2 | AI10: =SUM(D10:AH10) -> 10 | AJ10: 78 | AK10: 10 | AL10: =MIN(AJ10-AK10) -> 68 | AM10: 32/42
B11: Немецкий язык | C11: Франко Л.М. | L11: 2
B12: История | C12: Становой Е.Ю. | AI12: =SUM(D12:AH12) -> 0 | AJ12: 110 | AK12: =SUM(AI12) -> 0 | AL12: =MIN(AJ12-AK12) -> 110 | AM12: 42/68
B13: Обществознание | C13: Трофименко Е.В. | AI13: 0 | AJ13: 110 | AK13: =SUM(D13:AH13) -> 0 | AL13: 110 | AM13: –⁄110
A14: 2 | B14: Химия | C14: Трудова Н.А. | G14: 2 | K14: 2 | N14: 2 | T14: 2 | U14: 2 | AA14: 2 | AB14: 2 | AI14: 14 | AJ14: 74 | AK14: =SUM(D14:AH14) -> 14 | AL14: 60 | AM14: 32/42
A15: 2 | B15: Биология | C15: Сахнюк О.Г. | F15: 2 | G15: 2 | L15: 2 | M15: 2 | O15: 2 | S15: 2 | T15: 2 | U15: 2 | V15: 2 | Z15: 2 | AA15: 2 | AC15: 2 | AG15: 2 | AI15: 26 | AJ15: 74 | AK15: =SUM(D15:AH15) -> 26 | AL15: 48 | AM15: 32/42
B16: Физ.культура | C16: Становой Е.Ю. | K16: 2 | M16: 4 | N16: 2 | R16: 2 | S16: 4 | V16: 2 | Y16: 2 | AB16: 4 | AF16: 4 | AG16: 4 | AI16: 30 | AJ16: 117 | AK16: =SUM(AI16) -> 30 | AL16: 87 | AM16: 48/69
A17: 2 | B17: ОБЖ | C17: Лисичкина А.В. | AI17: 0 | AJ17: 68 | AK17: =SUM(D17:AH17) -> 0 | AL17: 68 | AM17: 32/36
A18: 5 | B18: Математика | C18: Булгаирова Т.В. | G18: 2 | H18: 4 | N18: 2 | U18: 2 | V18: 2 | AB18: 2 | AC18: 4 | AI18: 18 | AJ18: 284 | AK18: 18 | AL18: 266 | AM18: 76/200
B19: Математика консульт. | C19: Булгаирова Т.В. | AI19: 0 | AJ19: 10 | AK19: 0 | AL19: 10 | AM19: 10
A20: 6 | B20: Информатика и ИКТ | AI20: 0 | AJ20: 88 | AK20: 0 | AL20: 88 | AM20: 88/-
B21: Информатика и ИКТ консультации | AI21: 0 | AJ21: 10 | AK21: 0 | AL21: 10 | AM21: 10
A22: 6 | B22: Физика | C22: Трудова Н.А. | E22: 2 | F22: 2 | G22: 2 | K22: 2 | L22: 2 | M22: 2 | O22: 2 | R22: 2 | T22: 2 | U22: 2 | Y22: 2 | Z22: 2 | AA22: 2 | AF22: 2 | AI22: 28 | AJ22: 162 | AK22: 28 | AL22: 134 | AM22: 96/66
B23: Физика консультации | C23: Трудова Н.А. | AI23: 0 | AJ23: 10 | AK23: 0 | AL23: 10 | AM23: 10
B24: Итого | D24: =SUM(D7:D22) -> 0 | E24: =SUM(E7:E22) -> 4 | F24: 6 | G24: 8 | H24: 4 | I24: 0 | J24: 0 | K24: 6 | L24: 6 | M24: 8 | N24: 6 | O24: 4 | P24: 0 | Q24: 0 | R24: 4 | S24: 6 | T24: 6 | U24: 8 | V24: 6 | W24: 0 | X24: 0 | Y24: 6 | Z24: 6 | AA24: 8 | AB24: 8 | AC24: 6 | AD24: 0 | AE24: 0 | AF24: 6 | AG24: 6 | AH24: 0 | AI24: =SUM(AI7:AI22) -> 126
B26: Курс___1____Группа___11 к____Месяц ____октябрь______2014____г.
B28: наименование предметов | C28: фамилия преподавателя | D28: Количество часов | AI28: Дано часов за месяц | AJ28: Годовой план | AK28: Всего дано часов | AL28: Осталось до конца учебного года | AM28: Кол-во часов за 1/2 сем.
D29: Числа месяца
D30: 1 | E30: 2 | F30: 3 | G30: 4 | H30: 5 | I30: 6 | J30: 7 | K30: 8 | L30: 9 | M30: 10 | N30: 11 | O30: 12 | P30: 13 | Q30: 14 | R30: 15 | S30: 16 | T30: 17 | U30: 18 | V30: 19 | W30: 20 | X30: 21 | Y30: 22 | Z30: 23 | AA30: 24 | AB30: 25 | AC30: 26 | AD30: 27 | AE30: 28 | AF30: 29 | AG30: 30 | AH30: 31
A31: 5 | B31: Русский язык | C31: Лисичкина А.В. | J31: 2 | K31: 2 | L31: 2 | M31: 2 | P31: 2 | Q31: 2 | T31: 2 | W31: 2 | X31: 2 | Y31: 2 | Z31: 2 | AA31: 2 | AD31: 2 | AF31: 2 | AG31: 2 | AH31: 2 | AI31: =SUM(D31:AH31) -> 32 | AJ31: 74 | AK31: =SUM(AK7+AI31) -> 32 | AL31: =MIN(AJ31-AK31) -> 42 | AM31: 74/-
B32: Русский яз.консульт. | C32: Лисичкина А.В. | AI32: =SUM(D32:AH32) -> 0 | AJ32: 10 | AK32: =SUM(AK8+AI32) -> 0 | AL32: =MIN(AJ32-AK32) -> 10 | AM32: 10/-
B33: Литература | C33: Лисичкина А.В. | AI33: =SUM(D33:AH33) -> 0 | AJ33: 110 | AK33: =SUM(AK9+AI33) -> 0 | AL33: =MIN(AJ33-AK33) -> 110 | AM33: –⁄110
A34: 2 | B34: Английский язык | C34: Лебедев А.В. | D34: 2 | L34: 2 | Q34: 2 | S34: 2 | AE34: 2 | AF34: 2 | AI34: =SUM(D34:AH34) -> 12 | AJ34: 78 | AK34: =SUM(AK10+AI34) -> 22 | AL34: =MIN(AJ34-AK34) -> 56 | AM34: 32/46
B35: Немецкий язык | C35: Франко Л.М. | X35: 2 | AI35: 14 | AK35: =SUM(AK10+AI35) -> 24
B36: История | C36: Становой Е.Ю. | E36: 2 | I36: 2 | P36: 2 | R36: 2 | AD36: 2 | AF36: 2 | AI36: =SUM(D36:AH36) -> 12 | AJ36: 110 | AK36: =SUM(AK12+AI36) -> 12 | AL36: =MIN(AJ36-AK36) -> 98 | AM36: 42/68
B37: Обществознание | C37: Трофименко Е.В. | AI37: 0 | AJ37: 110 | AK37: =SUM(AK13+AI37) -> 0 | AL37: 110 | AM37: –⁄110
A38: 2 | B38: Химия | C38: Трудова Н.А. | D38: 2 | R38: 2 | AI38: 4 | AJ38: 74 | AK38: 18 | AL38: 56 | AM38: 32/42
A39: 2 | B39: Биология | C39: Сахнюк О.Г. | E39: 2 | F39: 4 | AI39: 6 | AJ39: 74 | AK39: 32 | AL39: 42 | AM39: 32/42
B40: Физ.культура | C40: Становой Е.Ю. | J40: 4 | Y40: 4 | AI40: 8 | AJ40: 117 | AK40: 38 | AL40: 79 | AM40: 48/69
A41: 2 | B41: ОБЖ | C41: Лисичкина А.В. | K41: 2 | Q41: 2 | W41: 2 | X41: 2 | Z41: 2 | AD41: 2 | AH41: 2 | AI41: 14 | AJ41: 68 | AK41: 14 | AL41: 54 | AM41: 32/36
A42: 5 | B42: Математика | C42: Булгаирова Т.В. | E42: 2 | F42: 2 | L42: 2 | M42: 2 | S42: 2 | T42: 2 | Z42: 2 | AG42: 2 | AH42: 2 | AI42: 18 | AJ42: 276 | AK42: 36 | AL42: 240 | AM42: 76/200
B43: Математика консульт. | C43: Булгаирова Т.В. | AI43: 0 | AJ43: 10 | AK43: 0 | AL43: 10 | AM43: 10
A44: 6 | B44: Информатика и ИКТ | C44: Ганя Д.С. | D44: 2 | E44: 2 | F44: 2 | I44: 2 | J44: 2 | K44: 2 | L44: 2 | M44: 2 | P44: 2 | Q44: 2 | R44: 2 | S44: 2 | T44: 2 | W44: 2 | X44: 2 | Y44: 2 | Z44: 2 | AA44: 2 | AD44: 2 | AE44: 2 | AF44: 2 | AG44: 2 | AH44: 2 | AI44: 46 | AJ44: 88 | AK44: 46 | AL44: 42 | AM44: 88/-
B45: Информатика и ИКТ консультации | C45: Ганя Д.С. | AI45: 0 | AJ45: 10 | AK45: 0 | AL45: 10 | AM45: 10
A46: 6 | B46: Физика | C46: Трудова Н.А. | I46: 2 | K46: 2 | R46: 2 | S46: 2 | AA46: 2 | AI46: 10 | AJ46: 162 | AK46: 38 | AL46: 124 | AM46: 96/66
B47: Физика консультации | C47: Трудова Н.А. | AI47: 0 | AJ47: 10 | AK47: 0 | AL47: 10 | AM47: 10
B48: Итого | D48: =SUM(D31:D46) -> 6 | E48: =SUM(E31:E46) -> 8 | F48: 8 | G48: 0 | H48: 0 | I48: 6 | J48: 8 | K48: 8 | L48: 8 | M48: 6 | N48: 0 | O48: 0 | P48: 6 | Q48: 8 | R48: 8 | S48: 8 | T48: 6 | U48: 0 | V48: 0 | W48: 6 | X48: 8 | Y48: 8 | Z48: 8 | AA48: 6 | AB48: 0 | AC48: 0 | AD48: 8 | AE48: 4 | AF48: 8 | AG48: 6 | AH48: 8 | AI48: =SUM(AI31:AI46) -> 176
B50: Курс___1____Группа___11 к____Месяц ____ноябрь______2014____г.
B52: наименование предметов | C52: фамилия преподавателя | D52: Количество часов | AI52: Дано часов за месяц | AJ52: Годовой план | AK52: Всего дано часов | AL52: Осталось до конца учебного года | AM52: Кол-во часов за 1/2 сем.
D53: Числа месяца
D54: 1 | E54: 2 | F54: 3 | G54: 4 | H54: 5 | I54: 6 | J54: 7 | K54: 8 | L54: 9 | M54: 10 | N54: 11 | O54: 12 | P54: 13 | Q54: 14 | R54: 15 | S54: 16 | T54: 17 | U54: 18 | V54: 19 | W54: 20 | X54: 21 | Y54: 22 | Z54: 23 | AA54: 24 | AB54: 25 | AC54: 26 | AD54: 27 | AE54: 28 | AF54: 29 | AG54: 30
A55: 5 | B55: Русский язык | C55: Лисичкина А.В. | H55: 2 | I55: 2 | J55: 2 | M55: 2 | N55: 2 | O55: 2 | P55: 2 | Q55: 2 | T55: 2 | U55: 2 | W55: 2 | X55: 2 | AA55: 2 | AB55: 2 | AC55: 2 | AI55: =SUM(D55:AH55) -> 30 | AJ55: 74 | AK55: =SUM(AK31+AI55) -> 62 | AL55: =MIN(AJ55-AK55) -> 12 | AM55: 74/-
B56: Русский яз.консульт. | C56: Лисичкина А.В. | AB56: 2 | AI56: =SUM(D56:AH56) -> 2 | AJ56: 10 | AK56: 2 | AL56: =MIN(AJ56-AK56) -> 8 | AM56: 10/-
B57: Литература | C57: Лисичкина А.В. | AI57: =SUM(D57:AH57) -> 0 | AJ57: 110 | AK57: 0 | AL57: =MIN(AJ57-AK57) -> 110 | AM57: –⁄110
A58: 2 | B58: Английский язык | C58: Лебедев А.В. | N58: 2 | O58: 2 | P58: 2 | AI58: 6 | AJ58: 78 | AK58: 28 | AL58: =MIN(AJ58-AK58) -> 50 | AM58: 32/46
B59: Немецкий язык | C59: Франко Л.М. | H59: 2 | AI59: 8 | AK59: 32
B60: История | C60: Становой Е.Ю. | H60: 2 | T60: 4 | AC60: 2 | AE60: 2 | AI60: =SUM(D60:AH60) -> 10 | AJ60: 110 | AK60: 22 | AL60: =MIN(AJ60-AK60) -> 88 | AM60: 42/68
B61: Обществознание | C61: Трофименко Е.В. | AI61: 0 | AJ61: 110 | AK61: =SUM(AK37+AI61) -> 0 | AL61: 110 | AM61: –⁄110
A62: 2 | B62: Химия | C62: Трудова Н.А. | W62: 2 | AA62: 4 | AD62: 2 | AI62: 8 | AJ62: 74 | AK62: 26 | AL62: 48 | AM62: 32/42
A63: 2 | B63: Биология | C63: Сахнюк О.Г. | AI63: 0 | AJ63: 74 | AK63: 32 | AL63: 42 | AM63: 32/42
B64: Физ.культура | C64: Становой Е.Ю. | AI64: 0 | AJ64: 117 | AK64: 38 | AL64: 79 | AM64: 48/69
A65: 2 | B65: ОБЖ | C65: Лисичкина А.В. | M65: 2 | N65: 2 | P65: 2 | T65: 2 | U65: 2 | AB65: 2 | AC65: 2 | AI65: 14 | AJ65: 68 | AK65: 28 | AL65: 40 | AM65: 32/36
A66: 5 | B66: Математика | C66: Булгаирова Т.В. | I66: 4 | J66: 4 | W66: 2 | X66: 4 | AD66: 4 | AE66: 2 | AI66: 20 | AJ66: 276 | AK66: 56 | AL66: 220 | AM66: 76/200
B67: Математика консульт. | C67: Булгаирова Т.В. | AI67: 0 | AJ67: 10 | AK67: 0 | AL67: 10 | AM67: 10
A68: 6 | B68: Информатика и ИКТ | C68: Ганя Д.С. | H68: 2 | I68: 2 | J68: 2 | M68: 2 | N68: 2 | O68: 2 | P68: 2 | Q68: 2 | U68: 4 | V68: 2 | X68: 2 | AB68: 2 | AE68: 2 | AI68: 28 | AJ68: 88 | AK68: 74 | AL68: 14 | AM68: 88/-
B69: Информатика и ИКТ консультации | C69: Ганя Д.С. | AI69: 0 | AJ69: 10 | AK69: 0 | AL69: 10 | AM69: 10
A70: 6 | B70: Физика | C70: Трудова Н.А. | V70: 4 | AA70: 2 | AC70: 2 | AD70: 2 | AI70: 10 | AJ70: 162 | AK70: 48 | AL70: 114 | AM70: 96/66
B71: Физика консультации | C71: Трудова Н.А. | AI71: 0 | AJ71: 10 | AK71: 0 | AL71: 10 | AM71: 10
B72: Итого | D72: =SUM(D55:D70) -> 0 | E72: =SUM(E55:E70) -> 0 | F72: 0 | G72: 0 | H72: 8 | I72: 8 | J72: 8 | K72: 0 | L72: 0 | M72: 6 | N72: 8 | O72: 6 | P72: 8 | Q72: 4 | R72: 0 | S72: 0 | T72: 8 | U72: 8 | V72: 6 | W72: 6 | X72: 8 | Y72: 0 | Z72: 0 | AA72: 8 | AB72: 8 | AC72: 8 | AD72: 8 | AE72: 6 | AF72: 0 | AG72: 0 | AH72: 0 | AI72: =SUM(AI55:AI70) -> 136
B74: Курс___1____Группа___11 к____Месяц ____декабрь______2014____г.
B76: наименование предметов | C76: фамилия преподавателя | D76: Количество часов | AI76: Дано часов за месяц | AJ76: Годовой план | AK76: Всего дано часов | AL76: Осталось до конца учебного года | AM76: Кол-во часов за 1/2 сем.
D77: Числа месяца
D78: 1 | E78: 2 | F78: 3 | G78: 4 | H78: 5 | I78: 6 | J78: 7 | K78: 8 | L78: 9 | M78: 10 | N78: 11 | O78: 12 | P78: 13 | Q78: 14 | R78: 15 | S78: 16 | T78: 17 | U78: 18 | V78: 19 | W78: 20 | X78: 21 | Y78: 22 | Z78: 23 | AA78: 24 | AB78: 25 | AC78: 26 | AD78: 27 | AE78: 28 | AF78: 29 | AG78: 30 | AH78: 31
A79: 5 | B79: Русский язык | C79: Лисичкина А.В. | E79: 2 | F79: 2 | G79: 2 | L79: 2 | O79: 2 | R79: 2 | T79: эк | AI79: =SUM(D79:AH79) -> 12 | AJ79: 74 | AK79: =SUM(AK55+AI79) -> 74 | AL79: =MIN(AJ79-AK79) -> 0 | AM79: 74/-
B80: Русский яз.консульт. | C80: Лисичкина А.В. | H80: 2 | L80: 2 | T80: 4 | AI80: =SUM(D80:AH80) -> 8 | AJ80: 10 | AK80: 10 | AL80: =MIN(AJ80-AK80) -> 0 | AM80: 10/-
B81: Литература | C81: Лисичкина А.В. | AI81: =SUM(D81:AH81) -> 0 | AJ81: 110 | AK81: 0 | AL81: =MIN(AJ81-AK81) -> 110 | AM81: –⁄110
A82: 2 | B82: Английский язык | C82: Лебедев А.В. | Z82: 2 | AA82: 2 | AI82: =SUM(D82:AH83) -> 4 | AJ82: 78 | AK82: 32 | AL82: =MIN(AJ82-AK82) -> 46 | AM82: 32/46
B83: Немецкий язык | C83: Франко Л.М. | AK83: =SUM(AK59+AI82) -> 36
B84: История | C84: Становой Е.Ю. | D84: 4 | K84: 2 | M84: 2 | O84: 2 | R84: 2 | U84: 4 | V84: 4 | AI84: =SUM(D84:AH84) -> 20 | AJ84: 110 | AK84: 42 | AL84: =MIN(AJ84-AK84) -> 68 | AM84: 42/68
B85: Обществознание | C85: Трофименко Е.В. | AI85: 0 | AJ85: 110 | AK85: =SUM(AK61+AI85) -> 0 | AL85: 110 | AM85: –⁄110
A86: 2 | B86: Химия | C86: Трудова Н.А. | U86: 2 | Y86: 4 | AI86: 6 | AJ86: 74 | AK86: 32 | AL86: 42 | AM86: 32/42
A87: 2 | B87: Биология | C87: Сахнюк О.Г. | AI87: 0 | AJ87: 74 | AK87: 32 | AL87: 42 | AM87: 32/42
B88: Физ.культура | C88: Становой Е.Ю. | AB88: 2 | AC88: 4 | AI88: 6 | AJ88: 117 | AK88: 44 | AL88: 73 | AM88: 48/69
A89: 2 | B89: ОБЖ | C89: Лисичкина А.В. | E89: 2 | L89: 2 | AA89: 2 | AC89: 2 | AI89: 8 | AJ89: 68 | AK89: 36 | AL89: 32 | AM89: 32/36
A90: 5 | B90: Математика | C90: Булгаирова Т.В. | G90: 4 | H90: 6 | O90: 4 | S90: 4 | V90: 2 | AI90: 20 | AJ90: 276 | AK90: 76 | AL90: 200 | AM90: 76/200
B91: Математика консульт. | C91: Булгаирова Т.В. | AI91: 0 | AJ91: 10 | AK91: 0 | AL91: 10 | AM91: 10
A92: 6 | B92: Информатика и ИКТ | C92: Ганя Д.С. | D92: 2 | E92: 2 | F92: 2 | K92: 2 | L92: 2 | M92: 4 | N92: экз | AI92: 14 | AJ92: 88 | AK92: 88 | AL92: 0 | AM92: 88/-
B93: Информатика и ИКТ консультации | C93: Ганя Д.С. | AI93: 0 | AJ93: 10 | AK93: 0 | AL93: 10 | AM93: 10
A94: 6 | B94: Физика | C94: Трудова Н.А. | D94: 2 | E94: 2 | F94: 4 | G94: 2 | K94: 4 | M94: 2 | R94: 4 | S94: 2 | U94: 2 | Y94: 4 | Z94: 4 | AA94: 4 | AB94: 6 | AI94: 42 | AJ94: 162 | AK94: 90 | AL94: 72 | AM94: 96/66
B95: Физика консультации | C95: Трудова Н.А. | AI95: 0 | AJ95: 10 | AK95: 0 | AL95: 10 | AM95: 10
B96: Итого | D96: =SUM(D79:D94) -> 8 | E96: =SUM(E79:E94) -> 8 | F96: 8 | G96: 8 | H96: 8 | I96: 0 | J96: 0 | K96: 8 | L96: 8 | M96: 8 | N96: 0 | O96: 8 | P96: 0 | Q96: 0 | R96: 8 | S96: 6 | T96: 4 | U96: 8 | V96: 6 | W96: 0 | X96: 0 | Y96: 8 | Z96: 6 | AA96: 8 | AB96: 8 | AC96: 6 | AD96: 0 | AE96: 0 | AF96: 0 | AG96: 0 | AH96: 0 | AI96: =SUM(AI79:AI94) -> 140
B98: Курс___1____Группа___11 к____Месяц ____январь______2015____г.
B100: наименование предметов | C100: фамилия преподавателя | D100: Количество часов | AI100: Дано часов за месяц | AJ100: Годовой план | AK100: Всего дано часов | AL100: Осталось до конца учебного года | AM100: Кол-во часов за 1/2 сем.
D101: Числа месяца
D102: 1 | E102: 2 | F102: 3 | G102: 4 | H102: 5 | I102: 6 | J102: 7 | K102: 8 | L102: 9 | M102: 10 | N102: 11 | O102: 12 | P102: 13 | Q102: 14 | R102: 15 | S102: 16 | T102: 17 | U102: 18 | V102: 19 | W102: 20 | X102: 21 | Y102: 22 | Z102: 23 | AA102: 24 | AB102: 25 | AC102: 26 | AD102: 27 | AE102: 28 | AF102: 29 | AG102: 30 | AH102: 31
A103: 5 | B103: Русский язык | C103: Лисичкина А.В. | AI103: =SUM(D103:AH103) -> 0 | AJ103: 74 | AK103: =SUM(AK79+AI103) -> 74 | AL103: =MIN(AJ103-AK103) -> 0 | AM103: 74/-
B104: Русский яз.консульт. | C104: Лисичкина А.В. | AI104: =SUM(D104:AH104) -> 0 | AJ104: 10 | AK104: 10 | AL104: =MIN(AJ104-AK104) -> 0 | AM104: 10/-
B105: Литература | C105: Лисичкина А.В. | R105: 2 | S105: 2 | V105: 2 | W105: 2 | X105: 2 | Z105: 2 | AD105: 2 | AE105: 2 | AI105: =SUM(D105:AH105) -> 16 | AJ105: 110 | AK105: 16 | AL105: =MIN(AJ105-AK105) -> 94 | AM105: –⁄110
A106: 2 | B106: Английский язык | C106: Лебедев А.В. | P106: 2 | R106: 2 | AF106: 2 | AI106: =SUM(D106:AH107) -> 6 | AJ106: 78 | AK106: 38 | AL106: =MIN(AJ106-AK106) -> 40 | AM106: 32/46
B107: Немецкий язык | C107: Франко Л.М. | AK107: =SUM(AK83+AI106) -> 42 | AL107: =MIN(AJ106-AK107) -> 36
B108: История | C108: Становой Е.Ю. | P108: 2 | S108: 2 | AC108: 2 | AD108: 2 | AI108: =SUM(D108:AH108) -> 8 | AJ108: 110 | AK108: 50 | AL108: =MIN(AJ108-AK108) -> 60 | AM108: 42/68
B109: Обществознание | C109: Трофименко Е.В. | O109: 2 | P109: 2 | Q109: 2 | S109: 2 | W109: 2 | AD109: 2 | AE109: 2 | AF109: 2 | AI109: 16 | AJ109: 110 | AK109: =SUM(AK85+AI109) -> 16 | AL109: 94 | AM109: –⁄110
A110: 2 | B110: Химия | C110: Трудова Н.А. | O110: 2 | S110: 2 | X110: 2 | AC110: 2 | AI110: 8 | AJ110: 74 | AK110: 40 | AL110: 34 | AM110: 32/42
A111: 2 | B111: Биология | C111: Сахнюк О.Г. | W111: 2 | X111: 2 | Z111: 2 | AD111: 2 | AI111: 8 | AJ111: 74 | AK111: 40 | AL111: 34 | AM111: 32/42
B112: Физ.культура | C112: Становой Е.Ю. | O112: 4 | AI112: 4 | AJ112: 117 | AK112: 48 | AL112: 69 | AM112: 48/69
A113: 2 | B113: ОБЖ | C113: Лисичкина А.В. | Q113: 2 | V113: 4 | Z113: 2 | AI113: 8 | AJ113: 68 | AK113: 44 | AL113: 24 | AM113: 32/36
A114: 5 | B114: Математика | C114: Булгаирова Т.В. | R114: 4 | Y114: 6 | AG114: 6 | AI114: 16 | AJ114: 276 | AK114: 92 | AL114: 184 | AM114: 76/200
B115: Математика консульт. | C115: Булгаирова Т.В. | AI115: 0 | AJ115: 10 | AK115: 0 | AL115: 10 | AM115: 10
A116: 6 | B116: Информатика и ИКТ | C116: Ганя Д.С. | AI116: 0 | AJ116: 88 | AK116: 88 | AL116: 0 | AM116: 88/-
B117: Информатика и ИКТ консультации | C117: Ганя Д.С. | AI117: 0 | AJ117: 10 | AK117: 0 | AL117: 10 | AM117: 10
A118: 6 | B118: Физика | C118: Трудова Н.А. | Q118: 2 | X118: 2 | Z118: 2 | AC118: 2 | AE118: 2 | AF118: 2 | AI118: 12 | AJ118: 162 | AK118: 102 | AL118: 60 | AM118: 96/66
B119: Физика консультации | C119: Трудова Н.А. | AI119: 0 | AJ119: 10 | AK119: 0 | AL119: 10 | AM119: 10
B120: Итого | D120: =SUM(D103:D118) -> 0 | E120: =SUM(E103:E118) -> 0 | F120: 0 | G120: 0 | H120: 0 | I120: 0 | J120: 0 | K120: 0 | L120: 0 | M120: 0 | N120: 0 | O120: 8 | P120: 6 | Q120: 6 | R120: 8 | S120: 8 | T120: 0 | U120: 0 | V120: 6 | W120: 6 | X120: 8 | Y120: 6 | Z120: 8 | AA120: 0 | AB120: 0 | AC120: 6 | AD120: 8 | AE120: 6 | AF120: 6 | AG120: 6 | AH120: 0 | AI120: =SUM(AI103:AI118) -> 102
B122: Курс___1____Группа___11 к____Месяц ____февраль______2015____г.
B124: наименование предметов | C124: фамилия преподавателя | D124: Количество часов | AI124: Дано часов за месяц | AJ124: Годовой план | AK124: Всего дано часов | AL124: Осталось до конца учебного года | AM124: Кол-во часов за 1/2 сем.
D125: Числа месяца
D126: 1 | E126: 2 | F126: 3 | G126: 4 | H126: 5 | I126: 6 | J126: 7 | K126: 8 | L126: 9 | M126: 10 | N126: 11 | O126: 12 | P126: 13 | Q126: 14 | R126: 15 | S126: 16 | T126: 17 | U126: 18 | V126: 19 | W126: 20 | X126: 21 | Y126: 22 | Z126: 23 | AA126: 24 | AB126: 25 | AC126: 26 | AD126: 27 | AE126: 28 | AF126: 29 | AG126: 30 | AH126: 31
A127: 5 | B127: Русский язык | C127: Лисичкина А.В. | AI127: =SUM(D127:AH127) -> 0 | AJ127: 74 | AK127: =SUM(AK103+AI127) -> 74 | AL127: =MIN(AJ127-AK127) -> 0 | AM127: 74/-
B128: Русский яз.консульт. | C128: Лисичкина А.В. | AI128: =SUM(D128:AH128) -> 0 | AJ128: 10 | AK128: 10 | AL128: =MIN(AJ128-AK128) -> 0 | AM128: 10/-
B129: Литература | C129: Лисичкина А.В. | E129: 2 | G129: 2 | I129: 2 | M129: 2 | P129: 2 | S129: 2 | T129: 2 | U129: 2 | W129: 2 | AA129: 2 | AB129: 2 | AI129: =SUM(D129:AH129) -> 22 | AJ129: 110 | AK129: 38 | AL129: =MIN(AJ129-AK129) -> 72 | AM129: –⁄110
A130: 2 | B130: Английский язык | C130: Лебедев А.В. | F130: 2 | T130: 2 | U130: 2 | AA130: 2 | AB130: 2 | AI130: =SUM(D130:AH131) -> 10 | AJ130: 78 | AK130: 48 | AL130: =MIN(AJ130-AK130) -> 30 | AM130: 32/46
B131: Немецкий язык | C131: Франко Л.М. | AK131: =SUM(AK107+AI130) -> 52 | AL131: =MIN(AJ130-AK131) -> 26
B132: История | C132: Становой Е.Ю. | E132: 2 | L132: 2 | P132: 2 | W132: 2 | AI132: =SUM(D132:AH132) -> 8 | AJ132: 110 | AK132: 58 | AL132: =MIN(AJ132-AK132) -> 52 | AM132: 42/68
B133: Обществознание | C133: Трофименко Е.В. | F133: 2 | G133: 2 | I133: 2 | M133: 4 | T133: 2 | U133: 2 | AB133: 2 | AI133: 16 | AJ133: 110 | AK133: =SUM(AK109+AI133) -> 32 | AL133: 78 | AM133: –⁄110
A134: 2 | B134: Химия | C134: Трудова Н.А. | E134: 2 | I134: 2 | L134: 2 | N134: 2 | AI134: 8 | AJ134: 74 | AK134: 48 | AL134: 26 | AM134: 32/42
A135: 2 | B135: Биология | C135: Сахнюк О.Г. | W135: 2 | AI135: 2 | AJ135: 74 | AK135: 42 | AL135: 32 | AM135: 32/42
B136: Физ.культура | C136: Становой Е.Ю. | G136: 2 | L136: 4 | M136: 2 | N136: 2 | S136: 2 | AA136: 4 | AI136: 16 | AJ136: 117 | AK136: 64 | AL136: 53 | AM136: 48/69
A137: 2 | B137: ОБЖ | C137: Лисичкина А.В. | N137: 2 | P137: 2 | T137: 2 | AI137: 6 | AJ137: 68 | AK137: 50 | AL137: 18 | AM137: 32/36
A138: 5 | B138: Математика | C138: Булгаирова Т.В. | H138: 6 | O138: 6 | V138: 6 | AC138: 6 | AD138: 6 | AI138: 30 | AJ138: 276 | AK138: 122 | AL138: 154 | AM138: 76/200
B139: Математика консульт. | C139: Булгаирова Т.В. | O139: 2 | AI139: 2 | AJ139: 10 | AK139: 2 | AL139: 8 | AM139: 10
A140: 6 | B140: Информатика и ИКТ | C140: Ганя Д.С. | AI140: 0 | AJ140: 88 | AK140: 88 | AL140: 0 | AM140: 88/-
B141: Информатика и ИКТ консультации | C141: Ганя Д.С. | AI141: 0 | AJ141: 10 | AK141: 0 | AL141: 10 | AM141: 10
A142: 6 | B142: Физика | C142: Трудова Н.А. | E142: 2 | G142: 2 | I142: 2 | N142: 2 | P142: 2 | S142: 2 | U142: 2 | AB142: 2 | AI142: 16 | AJ142: 162 | AK142: 118 | AL142: 44 | AM142: 96/66
B143: Физика консультации | C143: Трудова Н.А. | AI143: 0 | AJ143: 10 | AK143: 0 | AL143: 10 | AM143: 10
B144: Итого | D144: =SUM(D127:D142) -> 0 | E144: =SUM(E127:E142) -> 8 | F144: 4 | G144: 8 | H144: 6 | I144: 8 | J144: 0 | K144: 0 | L144: 8 | M144: 8 | N144: 8 | O144: 8 | P144: 8 | Q144: 0 | R144: 0 | S144: 6 | T144: 8 | U144: 8 | V144: 6 | W144: 6 | X144: 0 | Y144: 0 | Z144: 0 | AA144: 8 | AB144: 8 | AC144: 6 | AD144: 6 | AE144: 0 | AF144: 0 | AG144: 0 | AH144: 0 | AI144: =SUM(AI127:AI142) -> 136
B146: Курс___1____Группа___11 к____Месяц ____март______2015____г.
B148: наименование предметов | C148: фамилия преподавателя | D148: Количество часов | AI148: Дано часов за месяц | AJ148: Годовой план | AK148: Всего дано часов | AL148: Осталось до конца учебного года | AM148: Кол-во часов за 1/2 сем.
D149: Числа месяца
D150: 1 | E150: 2 | F150: 3 | G150: 4 | H150: 5 | I150: 6 | J150: 7 | K150: 8 | L150: 9 | M150: 10 | N150: 11 | O150: 12 | P150: 13 | Q150: 14 | R150: 15 | S150: 16 | T150: 17 | U150: 18 | V150: 19 | W150: 20 | X150: 21 | Y150: 22 | Z150: 23 | AA150: 24 | AB150: 25 | AC150: 26 | AD150: 27 | AE150: 28 | AF150: 29 | AG150: 30 | AH150: 31
A151: 5 | B151: Русский язык | C151: Лисичкина А.В. | AI151: =SUM(D151:AH151) -> 0 | AJ151: 74 | AK151: =SUM(AK127+AI151) -> 74 | AL151: =MIN(AJ151-AK151) -> 0 | AM151: 74/-
B152: Русский яз.консульт. | C152: Лисичкина А.В. | AI152: =SUM(D152:AH152) -> 0 | AJ152: 10 | AK152: 10 | AL152: =MIN(AJ152-AK152) -> 0 | AM152: 10/-
B153: Литература | C153: Лисичкина А.В. | F153: 2 | G153: 2 | M153: 2 | S153: 2 | T153: 2 | AB153: 2 | AH153: 2 | AI153: =SUM(D153:AH153) -> 14 | AJ153: 110 | AK153: 52 | AL153: =MIN(AJ153-AK153) -> 58 | AM153: –⁄110
A154: 2 | B154: Английский язык | C154: Лебедев А.В. | F154: 2 | H154: 2 | T154: 2 | U154: 2 | AA154: 4 | AB154: 2 | AH154: 2 | AI154: =SUM(D154:AH155) -> 16 | AJ154: 78 | AK154: 64 | AL154: =MIN(AJ154-AK154) -> 14 | AM154: 32/46
B155: Немецкий язык | C155: Франко Л.М. | AK155: =SUM(AK131+AI154) -> 68 | AL155: =MIN(AJ154-AK155) -> 10
B156: История | C156: Становой Е.Ю. | N156: 2 | S156: 2 | T156: 2 | Z156: 4 | AI156: =SUM(D156:AH156) -> 10 | AJ156: 110 | AK156: 68 | AL156: =MIN(AJ156-AK156) -> 42 | AM156: 42/68
B157: Обществознание | C157: Трофименко Е.В. | E157: 2 | F157: 2 | G157: 2 | H157: 2 | M157: 2 | N157: 2 | T157: 2 | U157: 2 | Z157: 2 | AA157: 2 | AH157: 2 | AI157: 22 | AJ157: 110 | AK157: =SUM(AK133+AI157) -> 54 | AL157: 56 | AM157: –⁄110
A158: 2 | B158: Химия | C158: Трудова Н.А. | E158: 2 | H158: 2 | N158: 2 | S158: 2 | U158: 2 | AG158: 2 | AI158: 12 | AJ158: 74 | AK158: 60 | AL158: 14 | AM158: 32/42
A159: 2 | B159: Биология | C159: Сахнюк О.Г. | G159: 2 | H159: 2 | Z159: 2 | AI159: 6 | AJ159: 74 | AK159: 48 | AL159: 26 | AM159: 32/42
B160: Физ.культура | C160: Становой Е.Ю. | M160: 4 | AB160: 2 | AI160: 6 | AJ160: 117 | AK160: 70 | AL160: 47 | AM160: 48/69
A161: 2 | B161: ОБЖ | C161: Лисичкина А.В. | E161: 2 | U161: 2 | AG161: 2 | AI161: 6 | AJ161: 68 | AK161: 56 | AL161: 12 | AM161: 32/36
A162: 5 | B162: Математика | C162: Булгаирова Т.В. | I162: 6 | O162: 6 | P162: 6 | V162: 6 | W162: 6 | AC162: 6 | AD162: 6 | AI162: 42 | AJ162: 276 | AK162: 164 | AL162: 112 | AM162: 76/200
B163: Математика консульт. | C163: Булгаирова Т.В. | AI163: 0 | AJ163: 10 | AK163: 2 | AL163: 8 | AM163: 10
A164: 6 | B164: Информатика и ИКТ | C164: Ганя Д.С. | AI164: 0 | AJ164: 88 | AK164: 88 | AL164: 0 | AM164: 88/-
B165: Информатика и ИКТ консультации | C165: Ганя Д.С. | AI165: 0 | AJ165: 10 | AK165: 0 | AL165: 10 | AM165: 10
A166: 6 | B166: Физика | C166: Трудова Н.А. | E166: 2 | G166: 2 | N166: 2 | S166: 2 | AB166: 2 | AG166: 2 | AI166: 12 | AJ166: 162 | AK166: 130 | AL166: 32 | AM166: 96/66
B167: Физика консультации | C167: Трудова Н.А. | AI167: 0 | AJ167: 10 | AK167: 0 | AL167: 10 | AM167: 10
B168: Итого | D168: =SUM(D151:D166) -> 0 | E168: =SUM(E151:E166) -> 8 | F168: 6 | G168: 8 | H168: 8 | I168: 6 | J168: 0 | K168: 0 | L168: 0 | M168: 8 | N168: 8 | O168: 6 | P168: 6 | Q168: 0 | R168: 0 | S168: 8 | T168: 8 | U168: 8 | V168: 6 | W168: 6 | X168: 0 | Y168: 0 | Z168: 8 | AA168: 6 | AB168: 8 | AC168: 6 | AD168: 6 | AE168: 0 | AF168: 0 | AG168: 6 | AH168: 6 | AI168: =SUM(AI151:AI166) -> 146
B170: Курс___1____Группа___11 к____Месяц ____апрель______2015____г.
B172: наименование предметов | C172: фамилия преподавателя | D172: Количество часов | AI172: Дано часов за месяц | AJ172: Годовой план | AK172: Всего дано часов | AL172: Осталось до конца учебного года | AM172: Кол-во часов за 1/2 сем.
D173: Числа месяца
D174: 1 | E174: 2 | F174: 3 | G174: 4 | H174: 5 | I174: 6 | J174: 7 | K174: 8 | L174: 9 | M174: 10 | N174: 11 | O174: 12 | P174: 13 | Q174: 14 | R174: 15 | S174: 16 | T174: 17 | U174: 18 | V174: 19 | W174: 20 | X174: 21 | Y174: 22 | Z174: 23 | AA174: 24 | AB174: 25 | AC174: 26 | AD174: 27 | AE174: 28 | AF174: 29 | AG174: 30
A175: 5 | B175: Русский язык | C175: Лисичкина А.В. | AI175: =SUM(D175:AH175) -> 0 | AJ175: 74 | AK175: =SUM(AK151+AI175) -> 74 | AL175: =MIN(AJ175-AK175) -> 0 | AM175: 74/-
B176: Русский яз.консульт. | C176: Лисичкина А.В. | AI176: =SUM(D176:AH176) -> 0 | AJ176: 10 | AK176: =SUM(AK152+AI176) -> 10 | AL176: =MIN(AJ176-AK176) -> 0 | AM176: 10/-
B177: Литература | C177: Лисичкина А.В. | J177: 2 | K177: 2 | M177: 2 | P177: 2 | W177: 2 | X177: 2 | AD177: 2 | AF177: 2 | AG177: 2 | AI177: =SUM(D177:AH177) -> 18 | AJ177: 110 | AK177: =SUM(AK153+AI177) -> 70 | AL177: =MIN(AJ177-AK177) -> 40 | AM177: –⁄110
A178: 2 | B178: Английский язык | C178: Лебедев А.В. | X178: 2 | Z178: 2 | AF178: 2 | AG178: 2 | AI178: =SUM(D178:AH179) -> 8 | AJ178: 78 | AK178: =SUM(AK154+AI178) -> 72 | AL178: =MIN(AJ178-AK178) -> 6 | AM178: 32/46
B179: Немецкий язык | C179: Франко Л.М. | AK179: =SUM(AK155+AI178) -> 76 | AL179: =MIN(AJ178-AK179) -> 2
B180: История | C180: Становой Е.Ю. | D180: 2 | AG180: 2 | AI180: =SUM(D180:AH180) -> 4 | AJ180: 110 | AK180: =SUM(AK156+AI180) -> 72 | AL180: =MIN(AJ180-AK180) -> 38 | AM180: 42/68
B181: Обществознание | C181: Трофименко Е.В. | D181: 2 | I181: 2 | J181: 2 | M181: 2 | R181: 2 | X181: 2 | Z181: 2 | AF181: 2 | AG181: 2 | AI181: 18 | AJ181: 110 | AK181: =SUM(AK157+AI181) -> 72 | AL181: 38 | AM181: –⁄110
A182: 2 | B182: Химия | C182: Трудова Н.А. | I182: 2 | P182: 2 | R182: 2 | S182: 2 | AI182: 8 | AJ182: 74 | AK182: 68 | AL182: 6 | AM182: 32/42
A183: 2 | B183: Биология | C183: Сахнюк О.Г. | S183: 4 | AF183: 2 | AI183: 6 | AJ183: 74 | AK183: 54 | AL183: 20 | AM183: 32/42
B184: Физ.культура | C184: Становой Е.Ю. | R184: 2 | W184: 4 | AD184: 4 | AI184: 10 | AJ184: 117 | AK184: 80 | AL184: 37 | AM184: 48/69
A185: 2 | B185: ОБЖ | C185: Лисичкина А.В. | J185: 2 | K185: 2 | P185: 2 | W185: 2 | X185: 2 | Z185: 2 | AI185: 12 | AJ185: 68 | AK185: 68 | AL185: 0 | AM185: 32/36
A186: 5 | B186: Математика | C186: Булгаирова Т.В. | E186: 6 | F186: 6 | L186: 6 | Q186: 6 | T186: 6 | Y186: 6 | AA186: 6 | AE186: 6 | AI186: 48 | AJ186: 276 | AK186: 212 | AL186: 64 | AM186: 76/200
B187: Математика консульт. | C187: Булгаирова Т.В. | E187: 2 | AE187: 2 | AI187: 4 | AJ187: 10 | AK187: 6 | AL187: 4 | AM187: 10
A188: 6 | B188: Информатика и ИКТ | C188: Ганя Д.С. | AI188: 0 | AJ188: 88 | AK188: 88 | AL188: 0 | AM188: 88/-
B189: Информатика и ИКТ консультации | C189: Ганя Д.С. | AI189: 0 | AJ189: 10 | AK189: 0 | AL189: 10 | AM189: 10
A190: 6 | B190: Физика | C190: Трудова Н.А. | D190: 2 | I190: 2 | K190: 2 | M190: 2 | P190: 2 | R190: 2 | S190: 2 | Z190: 2 | AD190: 2 | AI190: 18 | AJ190: 162 | AK190: 148 | AL190: 14 | AM190: 96/66
B191: Физика консультации | C191: Трудова Н.А. | F191: 2 | Q191: 2 | AA191: 2 | AI191: 6 | AJ191: 10 | AK191: 6 | AL191: 4 | AM191: 10
B192: Итого | D192: =SUM(D175:D190) -> 6 | E192: =SUM(E175:E190) -> 8 | F192: 6 | G192: 0 | H192: 0 | I192: 6 | J192: 6 | K192: 6 | L192: 6 | M192: 6 | N192: 0 | O192: 0 | P192: 8 | Q192: 6 | R192: 8 | S192: 8 | T192: 6 | U192: 0 | V192: 0 | W192: 8 | X192: 8 | Y192: 6 | Z192: 8 | AA192: 6 | AB192: 0 | AC192: 0 | AD192: 8 | AE192: 8 | AF192: 8 | AG192: 8 | AH192: 0 | AI192: =SUM(AI175:AI190) -> 154
B194: Курс___1____Группа___11 к____Месяц ____май______2015____г.
B196: наименование предметов | C196: фамилия преподавателя | D196: Количество часов | AI196: Дано часов за месяц | AJ196: Годовой план | AK196: Всего дано часов | AL196: Осталось до конца учебного года | AM196: Кол-во часов за 1/2 сем.
D197: Числа месяца
D198: 1 | E198: 2 | F198: 3 | G198: 4 | H198: 5 | I198: 6 | J198: 7 | K198: 8 | L198: 9 | M198: 10 | N198: 11 | O198: 12 | P198: 13 | Q198: 14 | R198: 15 | S198: 16 | T198: 17 | U198: 18 | V198: 19 | W198: 20 | X198: 21 | Y198: 22 | Z198: 23 | AA198: 24 | AB198: 25 | AC198: 26 | AD198: 27 | AE198: 28 | AF198: 29 | AG198: 30 | AH198: 31
A199: 5 | B199: Русский язык | C199: Лисичкина А.В. | AI199: =SUM(D199:AH199) -> 0 | AJ199: 74 | AK199: =SUM(AK175+AI199) -> 74 | AL199: =MIN(AJ199-AK199) -> 0 | AM199: 74/-
B200: Русский яз.консульт. | C200: Лисичкина А.В. | AI200: =SUM(D200:AH200) -> 0 | AJ200: 10 | AK200: 10 | AL200: =MIN(AJ200-AK200) -> 0 | AM200: 10/-
B201: Литература | C201: Лисичкина А.В. | I201: 2 | O201: 2 | P201: 2 | Q201: 2 | U201: 2 | W201: 2 | X201: 2 | AB201: 2 | AC201: 2 | AD201: 2 | AI201: =SUM(D201:AH201) -> 20 | AJ201: 110 | AK201: 90 | AL201: =MIN(AJ201-AK201) -> 20 | AM201: –⁄110
A202: 2 | B202: Английский язык | C202: Лебедев А.В. | H202: 2 | O202: 2 | P202: 2 | AI202: 6 | AJ202: 78 | AK202: 78 | AL202: =MIN(AJ202-AK202) -> 0 | AM202: 32/46
B203: Немецкий язык | C203: Франко Л.М. | AI203: 2 | AK203: 78 | AL203: =MIN(AJ202-AK203) -> 0
B204: История | C204: Становой Е.Ю. | H204: 2 | J204: 4 | O204: 2 | P204: 2 | Q204: 2 | U204: 2 | W204: 2 | X204: 2 | AB204: 4 | AC204: 4 | AD204: 4 | AF204: 2 | AI204: =SUM(D204:AH204) -> 32 | AJ204: 110 | AK204: 104 | AL204: =MIN(AJ204-AK204) -> 6 | AM204: 42/68
B205: Обществознание | C205: Трофименко Е.В. | H205: 2 | O205: 2 | U205: 2 | W205: 2 | X205: 2 | AB205: 2 | AC205: 2 | AI205: 14 | AJ205: 110 | AK205: =SUM(AK181+AI205) -> 86 | AL205: 24 | AM205: –⁄110
A206: 2 | B206: Химия | C206: Трудова Н.А. | J206: 2 | Q206: 2 | X206: 2 | AI206: 6 | AJ206: 74 | AK206: 74 | AL206: 0 | AM206: 32/42
A207: 2 | B207: Биология | C207: Сахнюк О.Г. | I207: 4 | W207: 2 | AD207: 2 | AI207: 8 | AJ207: 74 | AK207: 62 | AL207: 12 | AM207: 32/42
B208: Физ.культура | C208: Становой Е.Ю. | U208: 2 | AF208: 4 | AI208: 6 | AJ208: 117 | AK208: 86 | AL208: 31 | AM208: 48/69
A209: 2 | B209: ОБЖ | C209: Лисичкина А.В. | AI209: 0 | AJ209: 68 | AK209: 68 | AL209: 0 | AM209: 32/36
A210: 5 | B210: Математика | C210: Булгаирова Т.В. | K210: 8 | R210: 6 | V210: 8 | Y210: 6 | AE210: 8 | AI210: 36 | AJ210: 276 | AK210: 248 | AL210: 28 | AM210: 76/200
B211: Математика консульт. | C211: Булгаирова Т.В. | R211: 2 | AI211: 2 | AJ211: 10 | AK211: 8 | AL211: 2 | AM211: 10
A212: 6 | B212: Информатика и ИКТ | C212: Ганя Д.С. | AI212: 0 | AJ212: 88 | AK212: 88 | AL212: 0 | AM212: 88/-
B213: Информатика и ИКТ консультации | C213: Ганя Д.С. | AI213: 0 | AJ213: 10 | AK213: 0 | AL213: 10 | AM213: 10
A214: 6 | B214: Физика | C214: Трудова Н.А. | I214: 2 | J214: 2 | P214: 2 | Q214: 2 | AF214: 2 | AI214: 10 | AJ214: 162 | AK214: 158 | AL214: 4 | AM214: 96/66
B215: Физика консультации | C215: Трудова Н.А. | H215: 2 | AI215: 2 | AJ215: 10 | AK215: 8 | AL215: 2 | AM215: 10
B216: Итого | D216: =SUM(D199:D214) -> 0 | E216: =SUM(E199:E214) -> 0 | F216: 0 | G216: 0 | H216: 6 | I216: 8 | J216: 8 | K216: 8 | L216: 0 | M216: 0 | N216: 0 | O216: 8 | P216: 8 | Q216: 8 | R216: 8 | S216: 0 | T216: 0 | U216: 8 | V216: 8 | W216: 8 | X216: 8 | Y216: 6 | Z216: 0 | AA216: 0 | AB216: 8 | AC216: 8 | AD216: 8 | AE216: 8 | AF216: 8 | AG216: 0 | AH216: 0 | AI216: =SUM(AI199:AI214) -> 142
B218: Курс___1____Группа___11 к____Месяц ____июнь______2015____г.
B220: наименование предметов | C220: фамилия преподавателя | D220: Количество часов | AI220: Дано часов за месяц | AJ220: Годовой план | AK220: Всего дано часов | AL220: Осталось до конца учебного года | AM220: Кол-во часов за 1/2 сем.
... 20 more rows

Sheet расписание 1 семестр
Q1: УТВЕРЖДАЮ: И.о. руководителя ГБПОУ "Ржевский колледж" "___" _____________ 20__ г.
C2: Расписание занятий на отделении гуманитарно-технического профиля ГБПОУ "Ржевский колледж" на 2 семестр 2025/2026 учебного года
C3: 21 Э | E3: 31 Э | G3: 11 П | I3: 21 П | K3: 22 П | M3: 31 П | O3: 32 П | Q3: 41 П | S3: 11 К | U3: 21 К | W3: 31 К | Y3: 41 К | AA3: 11 Т | AC3: 21 Т | AE3: 31 Т | AG3: 41 Т
A4: Понедельник | B4: 1 | C4: −−−−−−−−−− | E4: МДК 04.02 | F4: 301 | G4: Информатика | H4: 403 | I4: Административное право | J4: 313 | K4: −−−−−−−−−− | M4: −−−−−−−−−− | O4: Иностранный язык | P4: 422 415 | Q4: −−−−−−−−−− | S4: Русский язык | T4: 420 | U4: Инженерная компьютерная графика (1 подгр.) | V4: 401 | W4: МДК 01.01 | X4: 404 | Y4: −−−−−−−−−− | AA4: Физическая культура | AC4: Иностранный язык | AD4: 416 418 | AE4: Информационные технологии в профессиональной деятельности | AF4: 218 | AG4: −−−−−−−−−−
E5: Шмелева И.П. | G5: Ганя Д.С. | I5: Бойкова Е.А. | O5: Степанова Н.Г./Наумович М.А. | S5: Павлова С.Р. | U5: Агаджанян К.О. | W5: Журов А.Е. | AA5: Егорова А.А. | AC5: Костина А.Р./Щеголева Н.А. | AE5: Сорокина А.А.
B6: 2 | C6: −−−−−−−−−− | E6: Физическая культура | G6: Физика | H6: 421 | I6: Иностранный язык | J6: 422 416 | K6: Административное право | L6: 313 | M6: −−−−−−−−−− | O6: Основы бережливого производства | P6: 414 | Q6: −−−−−−−−−− | S6: Математика | T6: 309 | U6: Дискретная математика | V6: 404 | W6: МДК 02.03 | X6: 403 | Y6: −−−−−−−−−− | AA6: Иностранный язык | AB6: 415 418 | AC6: Техническая механика | AD6: 218 | AE6: Безопасность жизнедеятельности | AF6: 316 | AG6: −−−−−−−−−−
E7: Егорова А.А. | G7: Трудова Н.А. | I7: Степанова Н.Г./Костина А.Р. | K7: Бойкова Е.А. | O7: Боброва О.В. | S7: Виноградова О.А. | U7: Журов А.Е. | W7: Ганя Д.С. | AA7: Наумович М.А./Щеголева Н.А. | AC7: Сорокина А.А. | AE7: Сугян П.Г.
B8: 3 | C8: МДК 01.01 | D8: 224 | E8: Иностранный язык | F8: 422 416 | G8: Биология | H8: 317 | I8: МДК 03.01 | J8: 318 | K8: Гражданское право | L8: 322 | M8: Основы бережливого производства | N8: 414 | O8: МДК 02.02 | P8: 313 | Q8: Муниципальное право | R8: 324 | S8: Информатика | T8: 403 | U8: МДК 02.01 | V8: 404 | W8: Физическая культура | Y8: −−−−−−−−−− | AA8: История | AB8: 304 | AC8: Процессы формообразования и инструменты | AD8: 218 | AE8: МДК 02.01 | AF8: 215 | AG8: −−−−−−−−−−
C9: Левакова М.А. | E9: Степанова Н.Г./Костина А.Р. | G9: Панченко А.Л. | I9: Костина Е.А. | K9: Смирнова Г.А. | M9: Боброва О.В. | O9: Бойкова Е.А. | Q9: Нечаева М.А. | S9: Ганя Д.С. | U9: Журов А.Е. | W9: Егорова А.А. | AA9: Корытова Н.Г. | AC9: Сорокина А.А. | AE9: Крапшилова И.Л.
B10: 4 | C10: МДК 01.01 | D10: 224 | I10: МДК 03.01 | J10: 318 | K10: Теория государства и права | L10: 322 | M10: МДК 02.02 | N10: 313 | Q10: Физическая культура | S10: Литература | T10: 420 | U10: Инженерная компьютерная графика (2 подгр.) | V10: 401 | W10: Менеджмент | X10: 324 | Y10: МДК 03.01 | Z10: 403 404 | AA10: Биология | AB10: 317 | AC10: Физическая культура | AG10: МДК 03.02 | AH10: 215
C11: Левакова М.А. | I11: Костина Е.А. | K11: Смирнова Г.А. | M11: Бойкова Е.А. | Q11: Егорова А.А. | S11: Павлова С.Р. | U11: Агаджанян К.О. | W11: Нечаева М.А. | Y11: Ганя Д.С./Журов А.Е. | AA11: Панченко А.Л. | AC11: Орлова И.Н. | AG11: Крапшилова И.Л.
B12: 5 | C12: Безопасность жизнедеятельности | D12: 316 | M12: МДК 02.02 | N12: 313 | Q12: МДК 04.01 | R12: 401 | Y12: МДК 03.01 | Z12: 403 404 | AG12: МДК 02.01 | AH12: 215
C13: Сугян П.Г. | M13: Бойкова Е.А. | Q13: Агаджанян К.О. | Y13: Ганя Д.С./Журов А.Е. | AG13: Ершова О.С./Крапшилова И.Л.
B14: 6 | C14: МДК 02.02 | D14: 224 | M14: МДК 02.02 | N14: 313 | Q14: МДК 04.01 | R14: 401 | Y14: МДК 03.01 | Z14: 403 404 | AG14: МДК 02.01 | AH14: 215
C15: Левакова М.А. | M15: Бойкова Е.А. | Q15: Агаджанян К.О. | Y15: Ганя Д.С./Журов А.Е. | AG15: Ершова О.С./Крапшилова И.Л.
A16: Вторник | B16: 1 | C16: −−−−−−−−−− | E16: Руководство фирмой в программе 1С | F16: 224 | G16: Химия | H16: 421 | I16: Гражданское право | J16: 322 | K16: МДК 01.02 | L16: 313 | M16: −−−−−−−−−− | O16: −−−−−−−−−− | Q16: −−−−−−−−−− | S16: −−−−−−−−−− | U16: МДК 02.02 | V16: 404 | W16: Безопасность жизнедеятельности | X16: 316 | Y16: −−−−−−−−−− | AA16: Информатика | AB16: 403 | AC16: Инженерная графика | AD16: 218 215 | AE16: −−−−−−−−−− | AG16: −−−−−−−−−−
E17: Левакова М.А. | G17: Трудова Н.А. | I17: Смирнова Г.А. | K17: Бойкова Е.А. | U17: Журов А.Е. | W17: Сугян П.Г. | AA17: Ганя Д.С. | AC17: Сорокина А.А./Крапшилова И.Л.
B18: 2 | C18: Безопасность жизнедеятельности | D18: 316 | E18: МДК 04.02 | F18: 301 | G18: История | H18: 304 | I18: МДК 01.02 | J18: 313 | K18: МДК 03.02 | L18: 401 | M18: Основы бережливого производства | N18: 414 | O18: −−−−−−−−−− | Q18: −−−−−−−−−− | S18: Физика | T18: 421 | U18: МДК 02.02 | V18: 404 | W18: МДК 02.03 | X18: 403 | Y18: −−−−−−−−−− | AA18: Русский язык | AB18: 420 | AC18: Метрология, стандартизация и сертификация | AD18: 218 | AE18: МДК 05.01 | AF18: 413 | AG18: −−−−−−−−−−
C19: Сугян П.Г. | E19: Шмелева И.П. | G19: Корытова Н.А. | I19: Бойкова Е.А. | K19: Агаджанян К.О. | M19: Боброва О.В. | S19: Трудова Н.А. | U19: Журов А.Е. | W19: Ганя Д.С. | AA19: Павлова С.Р. | AC19: Сорокина А.А. | AE19: Ершова О.С.
B20: 3 | C20: МДК 02.01 | D20: 324 | E20: Безопасность жизнедеятельности | F20: 316 | I20: Теория государства и права | J20: 322 | K20: МДК 03.02 | L20: 401 | M20: МДК 02.02 | N20: 313 | O20: Физическая культура | Q20: −−−−−−−−−− | S20: Математика | T20: 309 | U20: Основы алгоритмизации и программирования | V20: 403 | W20: МДК 01.01 | X20: 404 | Y20: Иностранный язык | Z20: 422 416 | AA20: Физика | AB20: 421 | AC20: Технология машиностроения | AD20: 218 | AE20: МДК 02.01 | AF20: 215 | AG20: −−−−−−−−−−
C21: Нечаева М.А. | E21: Сугян П.Г. | I21: Смирнова Г.А. | K21: Агаджанян К.О. | M21: Бойкова Е.А. | O21: Егорова А.А. | S21: Виноградова О.А. | U21: Ганя Д.С. | W21: Журов А.Е. | Y21: Степанова Н.Г./Костина А.Р. | AA21: Трудова Н.А. | AC21: Сорокина А.А. | AE21: Крапшилова И.Л.
B22: 4 | C22: Налоги и налогооблажение | D22: 301 | E22: МДК 03.01 | F22: 224 | I22: МДК 03.01 | J22: 318 | M22: МДК 02.01 | N22: 322 | O22: МДК 02.02 | P22: 313 | Q22: МДК 04.01 | R22: 401 | S22: Обществознание | T22: 212 | U22: Элементы высшей математики | V22: 309 | W22: Иностранный язык | X22: 416 415 | Y22: МДК 03.01 | Z22: 403 404 | AE22: МДК 01.01 | AF22: 218 | AG22: МДК 03.01 | AH22: 215
C23: Сухойкова О.В. | E23: Левакова М.А. | I23: Костина Е.А. | M23: Смирнова Г.А. | O23: Бойкова Е.А. | Q23: Агаджанян К.О. | S23: Соколова О.А. | U23: Виноградова О.А. | W23: Костина А.Р./Наумович М.А. | Y23: Ганя Д.С./Журов А.Е. | AE23: Сорокина А.А. | AG23: Крапшилова И.Л.
B24: 5 | C24: Иностранный язык | D24: 416 | M24: Физическая культура | O24: МДК 02.02 | P24: 313 | Q24: МДК 04.01 | R24: 401 | S24: Биология | T24: 317 | Y24: МДК 03.01 | Z24: 403 404 | AG24: МДК 03.01 | AH24: 215
C25: Костина А.Р. | M25: Егорова А.А. | O25: Бойкова Е.А. | Q25: Агаджанян К.О. | S25: Панченко А.Л. | Y25: Ганя Д.С./Журов А.Е. | AG25: Крапшилова И.Л.
B26: 6 | O26: МДК 02.02 | P26: 313 | Q26: МДК 04.01 | R26: 401 | Y26: МДК 03.01 | Z26: 403 404 | AG26: МДК 02.01 | AH26: 215
O27: Бойкова Е.А. | Q27: Агаджанян К.О. | Y27: Ганя Д.С./Журов А.Е. | AG27: Ершова О.С./Крапшилова И.Л.
A28: Среда | B28: 1 | C28: −−−−−−−−−− | E28: −−−−−−−−−− | G28: −−−−−−−−−− | I28: −−−−−−−−−− | K28: МДК 03.03 | L28: 313 | M28: Иностранный язык | N28: 422 415 | O28: −−−−−−−−−− | Q28: −−−−−−−−−− | S28: Основы безопасности и защиты Родины | T28: 217 | U28: Инженерная компьютерная графика (2 подгр.) | V28: 401 | W28: МДК 01.02 | X28: 404 | Y28: −−−−−−−−−− | AA28: Обществознание | AB28: 212 | AC28: Инженерная графика | AD28: 218 215 | AE28: МДК 05.01 | AF28: 414 | AG28: −−−−−−−−−−
K29: Бойкова Е.А. | M29: Степанова Н.Г./Наумович М.А. | S29: Пичужкина И.Н. | U29: Агаджанян К.О. | W29: Журов А.Е. | AA29: Соколова О.А. | AC29: Сорокина А.А./Крапшилова И.Л. | AE29: Ершова О.С.
B30: 2 | C30: Основы управленческого учета | D30: 301 | E30: −−−−−−−−−− | G30: −−−−−−−−−− | I30: МДК 03.03 | J30: 313 | K30: Иностранный язык | L30: 422 415 | M30: Физическая культура | O30: −−−−−−−−−− | Q30: −−−−−−−−−− | S30: История | T30: 414 | U30: МДК 01.01 | V30: 403 | W30: МДК 01.02 | X30: 404 | Y30: −−−−−−−−−− | AA30: Основы безопасности и защиты Родины | AB30: 217 | AC30: Технология машиностроения | AD30: 218 | AE30: Безопасность жизнедеятельности | AF30: 316 | AG30: −−−−−−−−−−
C31: Сухойкова О.В. | I31: Бойкова Е.А. | K31: Степанова Н.Г./Наумович М.А. | M31: Егорова А.А. | S31: Боброва О.В. | U31: Ганя Д.С. | W31: Журов А.Е. | AA31: Пичужкина И.Н. | AC31: Сорокина А.А. | AE31: Сугян П.Г.
B32: 3 | C32: МДК 01.01 | D32: 224 | E32: −−−−−−−−−− | G32: Обществознание | H32: 212 | I32: МДК 03.02 | J32: 318 | K32: Теория государства и права | L32: 322 | M32: МДК 02.03 | N32: 313 | O32: −−−−−−−−−− | Q32: МДК 04.01 | R32: 401 | U32: Иностранный язык | V32: 422 415 | W32: МДК 01.02 | X32: 404 | Y32: Физическая культура | AA32: Математика | AB32: 109 | AC32: МДК 06.01 | AD32: 309 | AE32: Информационные технологии в профессиональной деятельности | AF32: 218 | AG32: Физическая культура
C33: Левакова М.А. | G33: Соколова О.А. | I33: Костина Е.А. | K33: Смирнова Г.А. | M33: Бойкова Е.А. | Q33: Агаджанян К.О. | U33: Степанова Н.Г./Наумович М.А. | W33: Журов А.Е. | Y33: Егорова А.А. | AA33: Устинова С.А. | AC33: Васильев А.К. | AE33: Сорокина А.А. | AG33: Орлова И.Н.
B34: 4 | C34: МДК 01.01 | D34: 224 | E34: МДК 05.01 | F34: 301 | G34: Физика | H34: 421 | I34: МДК 03.02 | J34: 318 | K34: Гражданское право | L34: 322 | O34: МДК 02.02 | P34: 313 | Q34: Муниципальное право | R34: 324 | U34: Инженерная компьютерная графика (1 подгр.) | V34: 401 | Y34: МДК 03.01 | Z34: 403 404 | AA34: Математика | AB34: 109 | AC34: Метрология, стандартизация и сертификация | AD34: 218 | AE34: Иностранный язык | AF34: 422 416 | AG34: МДК 03.02 | AH34: 215
C35: Левакова М.А. | E35: Сухойкова О.А. | G35: Трудова Н.А. | I35: Костина Е.А. | K35: Смирнова Г.А. | O35: Бойкова Е.А. | Q35: Нечаева М.А. | U35: Агаджанян К.О. | Y35: Ганя Д.С./Журов А.Е. | AA35: Устинова С.А. | AC35: Сорокина А.А. | AE35: Степанова Н.Г./Костина А.Р. | AG35: Крапшилова И.Л.
B36: 5 | E36: МДК 03.01 | F36: 224 | G36: Математика | H36: 302 | O36: МДК 02.03 | P36: 313 | Q36: МДК 04.01 | R36: 401 | Y36: МДК 03.01 | Z36: 403 404 | AG36: МДК 03.02 | AH36: 215
E37: Левакова М.А. | G37: Хладовская Е.А. | O37: Бойкова Е.А. | Q37: Агаджанян К.О. | Y37: Ганя Д.С./Журов А.Е. | AG37: Крапшилова И.Л.
B38: 6 | E38: МДК 03.01 | F38: 224 | G38: Иностранный язык | H38: 422 418 | O38: МДК 02.03 | P38: 313 | Q38: МДК 04.01 | R38: 401 | Y38: МДК 03.01 | Z38: 403 404 | AG38: МДК 02.01 | AH38: 215
E39: Левакова М.А. | G39: Степанова Н.Г./Щеголева Н.А. | O39: Бойкова Е.А. | Q39: Агаджанян К.О. | Y39: Ганя Д.С./Журов А.Е. | AG39: Ершова О.С./Крапшилова И.Л.
A40: Четверг | B40: 1 | C40: МДК 02.02 | D40: 224 | E40: МДК 04.02 | F40: 301 | G40: Иностранный язык | H40: 422 418 | I40: МДК 03.02 | J40: 318 | K40: −−−−−−−−−− | M40: −−−−−−−−−− | O40: −−−−−−−−−− | Q40: Арбитраж | R40: 313 | S40: Иностранный язык | T40: 416 415 | U40: Дискретная математика | V40: 401 | W40: Безопасность жизнедеятельности | X40: 316 | Y40: −−−−−−−−−− | AA40: −−−−−−−−−− | AC40: Инженерная графика | AD40: 218 215 | AE40: МДК 05.01 | AF40: 414 | AG40: −−−−−−−−−−
C41: Левакова М.А. | E41: Шмелева И.П. | G41: Степанова Н.Г./Щеголева Н.А. | I41: Костина Е.А. | Q41: Бойкова Е.А. | S41: Костина А.Р./Наумович М.А. | U41: Журов А.Е. | W41: Сугян П.Г. | AC41: Сорокина А.А./Крапшилова И.Л. | AE41: Ершова О.С.
B42: 2 | C42: Физическая культура | E42: МДК 05.01 | F42: 301 | G42: Математика | H42: 302 | I42: Гражданское право | J42: 322 | K42: Административное право | L42: 313 | M42: −−−−−−−−−− | O42: Основы бережливого производства | P42: 414 | Q42: Иностранный язык | R42: 422 415 | S42: Биология | T42: 317 | U42: Информационные технологии | V42: 403 | W42: МДК 01.02 | X42: 404 | Y42: −−−−−−−−−− | AA42: −−−−−−−−−− | AC42: МДК 01.01 | AD42: 218 | AE42: МДК 02.01 | AF42: 215 | AG42: −−−−−−−−−−
C43: Егорова А.А. | E43: Сухойкова О.А. | G43: Хладовская Е.А. | I43: Смирнова Г.А. | K43: Бойкова Е.А. | O43: Боброва О.В. | Q43: Степанова Н.Г./Наумович М.А. | S43: Панченко А.Л. | U43: Ганя Д.С. | W43: Журов А.Е. | AC43: Сорокина А.А. | AE43: Крапшилова И.Л.
B44: 3 | C44: Налоги и налогооблажение | D44: 301 | E44: МДК 03.01 | F44: 224 | G44: Русский язык | H44: 421 | I44: Физическая культура | K44: МДК 03.01 | L44: 318 | M44: МДК 02.01 | N44: 322 | O44: МДК 02.03 | P44: 313 | Q44: Муниципальное право | R44: 324 | S44: Физика | T44: 421 | U44: МДК 02.01 | V44: 404 | W44: МДК 02.03 | X44: 403 | Y44: −−−−−−−−−− | AA44: История | AB44: 304 | AC44: МДК 06.01 | AD44: 112 | AE44: МДК 01.01 | AF44: 218 | AG44: МДК 03.02 | AH44: 215
C45: Сухойкова О.В. | E45: Левакова М.А. | G45: Павлова С.Р. | I45: Егорова А.А. | K45: Костина Е.А. | M45: Смирнова Г.А. | O45: Бойкова Е.А. | Q45: Нечаева М.А. | S45: Трудова Н.А. | U45: Журов А.Е. | W45: Ганя Д.С. | AA45: Корытова Н.Г. | AC45: Васильев А.К. | AE45: Сорокина А.А. | AG45: Крапшилова И.Л.
B46: 4 | E46: МДК 05.01 | F46: 301 | G46: Литература | H46: 421 | K46: МДК 03.01 | L46: 318 | M46: МДК 02.03 | N46: 313 | O46: МДК 02.01 | P46: 322 | Q46: Муниципальное право | R46: 324 | U46: Архитектура ЭВМ | V46: 401 | W46: Физическая культура | Y46: МДК 03.01 | Z46: 403 404 | AA46: Математика | AB46: 109 | AC46: МДК 06.01 | AD46: 112 | AE46: Иностранный язык | AF46: 422 416 | AG46: МДК 03.02 | AH46: 215
E47: Сухойкова О.А. | G47: Павлова С.Р. | K47: Костина Е.А. | M47: Бойкова Е.А. | O47: Смирнова Г.А. | Q47: Нечаева М.А. | U47: Агаджанян К.О. | W47: Егорова А.А. | Y47: Ганя Д.С./Журов А.Е. | AA47: Устинова С.А. | AC47: Васильев А.К. | AE47: Степанова Н.Г./Костина А.Р. | AG47: Крапшилова И.Л.
B48: 5 | K48: МДК 03.01 | L48: 318 | M48: МДК 02.03 | N48: 313 | O48: Физическая культура | Y48: МДК 03.01 | Z48: 403 404 | AA48: Основы безопасности и защиты Родины | AB48: 217 | AG48: МДК 03.02 | AH48: 215
K49: Костина Е.А. | M49: Бойкова Е.А. | O49: Егорова А.А. | Y49: Ганя Д.С./Журов А.Е. | AA49: Пичужкина И.Н. | AG49: Крапшилова И.Л.
B50: 6 | M50: МДК 02.03 | N50: 313 | Y50: МДК 03.01 | Z50: 403 404 | AA50: Физическая культура | AG50: МДК 02.01 | AH50: 215
M51: Бойкова Е.А. | Y51: Ганя Д.С./Журов А.Е. | AA51: Егорова А.А. | AG51: Ершова О.С./Крапшилова И.Л.
A52: Пятница | B52: 1 | C52: −−−−−−−−−− | E52: МДК 04.02 | F52: 301 | G52: Физическая культура | I52: −−−−−−−−−− | K52: −−−−−−−−−− | M52: Иностранный язык | N52: 422 415 | O52: −−−−−−−−−− | Q52: Арбитраж | R52: 313 | S52: −−−−−−−−−− | U52: Архитектура ЭВМ | V52: 401 | W52: МДК 03.01 | X52: 404 | Y52: −−−−−−−−−− | AA52: Обществознание | AB52: 212 | AC52: Технология машиностроения | AD52: 218 | AE52: МДК 02.01 | AF52: 215 | AG52: −−−−−−−−−−
E53: Шмелева И.П. | G53: Егорова А.А. | M53: Степанова Н.Г./Наумович М.А. | Q53: Бойкова Е.А. | U53: Агаджанян К.О. | W53: Журов А.Е. | AA53: Соколова О.А. | AC53: Сорокина А.А. | AE53: Крапшилова И.Л.
B54: 2 | C54: −−−−−−−−−− | E54: Руководство фирмой в программе 1С | F54: 224 | G54: История | H54: 304 | I54: −−−−−−−−−− | K54: Гражданское право | L54: 322 | M54: МДК 02.03 | N54: 313 | O54: Иностранный язык | P54: 422 415 | Q54: Муниципальное право | R54: 324 | S54: История | T54: 414 | U54: МДК 01.01 | V54: 403 | W54: МДК 03.01 | X54: 404 | Y54: −−−−−−−−−− | AA54: Литература | AB54: 420 | AC54: Инженерная графика | AD54: 218 215 | AE54: Физическая культура | AG54: −−−−−−−−−−
E55: Левакова М.А. | G55: Корытова Н.Г. | K55: Смирнова Г.А. | M55: Бойкова Е.А. | O55: Степанова Н.Г./Наумович М.А. | Q55: Нечаева М.А. | S55: Боброва О.В. | U55: Ганя Д.С. | W55: Журов А.Е. | AA55: Павлова С.Р. | AC55: Сорокина А.А./Крапшилова И.Л. | AE55: Орлова И.Н.
B56: 3 | C56: Основы управленческого учета | D56: 301 | E56: МДК 03.01 | F56: 224 | G56: Обществознание | H56: 212 | I56: МДК 03.02 | J56: 318 | K56: МДК 03.02 | L56: 401 | M56: Основы бережливого производства | N56: 414 | O56: МДК 02.01 | P56: 322 | Q56: Арбитраж | R56: 313 | S56: Математика | T56: 309 | U56: Физическая культура | W56: Менеджмент | X56: 324 | Y56: МДК 03.01 | Z56: 403 404 | AC56: МДК 06.01 | AD56: 112 | AE56: МДК 01.01 | AF56: 218 | AG56: МДК 03.02 | AH56: 215
C57: Сухойкова О.В. | E57: Левакова М.А. | G57: Соколова О.А. | I57: Костина Е.А. | K57: Агаджанян К.О. | M57: Боброва О.В. | O57: Смирнова Г.А. | Q57: Бойкова Е.А. | S57: Виноградова О.А. | U57: Егорова А.А. | W57: Нечаева М.А. | Y57: Ганя Д.С./Журов А.Е. | AC57: Васильев А.К. | AE57: Сорокина А.А. | AG57: Крапшилова И.Л.
B58: 4 | C58: МДК 01.01 | D58: 224 | E58: Менеджмент | F58: 324 | G58: Обществознание | H58: 212 | I58: Гражданское право | J58: 322 | K58: МДК 04.01 | L58: 318 | O58: МДК 02.03 | P58: 313 | S58: Физическая культура | U58: Элементы высшей математики | V58: 309 | Y58: МДК 03.01 | Z58: 403 404 | AE58: МДК 05.01 | AF58: 414 | AG58: Иностранный язык | AH58: 422 416
C59: Левакова М.А. | E59: Нечаева М.А. | G59: Соколова О.А. | I59: Смирнова Г.А. | K59: Костина Е.А. | O59: Бойкова Е.А. | S59: Егорова А.А. | U59: Виноградова О.А. | Y59: Ганя Д.С./Журов А.Е. | AE59: Ершова О.С. | AG59: Степанова Н.Г./Костина А.Р.
B60: 5 | C60: МДК 01.01 | D60: 224 | I60: МДК 04.01 | J60: 318 | K60: Физическая культура | O60: МДК 02.03 | P60: 313 | S60: Обществознание | T60: 212 | Y60: МДК 03.01 | Z60: 403 404 | AG60: МДК 02.01 | AH60: 215
C61: Левакова М.А. | I61: Костина Е.А. | K61: Егорова А.А. | O61: Бойкова Е.А. | S61: Соколова О.А. | Y61: Ганя Д.С./Журов А.Е. | AG61: Ершова О.С./Крапшилова И.Л.
B62: 6 | C62: МДК 01.01 | D62: 224 | I62: Административное право | J62: 313 | Y62: МДК 03.01 | Z62: 403 404 | AG62: МДК 02.01 | AH62: 215
C63: Левакова М.А. | I63: Бойкова Е.А. | Y63: Ганя Д.С./Журов А.Е. | AG63: Ершова О.С./Крапшилова И.Л.
C65: И.о. заместителя руководителя по УР "__ " ____________ 20__ г.
